Workbook

Sheet DaoyouModelConfig
A1: ID | B1: name | D1: quality | E1: bodyIcon | F1: headIcon | G1: growupRate | H1: des | I1: desUnlockLv | N1: PreferGiftID | O1: shownPreferGiftID | T1: guajiBuffID | Z1: daolvSkillID | AB1: EmotionLvforQuest | AC1: EventCompleteforQuest | AD1: QuestID | AF1: EmotionLvforspecialGift | AG1: specialGiftID | AH1: specialGiftNum
A2: int | B2: int | D2: int | E2: string | F2: string | G2: int | H2: int[] | I2: int[] | N2: int[] | O2: int[] | T2: int[] | Z2: int[] | AB2: int | AC2: int | AD2: int | AF2: int[] | AG2: int[] | AH2: int[]
A4: ID | B4: 名称 | C4: 名称 | D4: 道友品质 | E4: 半身像 | F4: 头像 | G4: 潜力 80=80% 等级差 | H4: 介绍 | I4: 介绍解锁相熟等级 | N4: 喜好的礼物ID | O4: 默认显示的礼物ID | P4: 喜好礼物1 | Q4: 喜好礼物2 | R4: 喜好礼物3 | T4: 挂机增益类型 | U4: 产出概率 | V4: 产出类型1 | W4: 产出类型2 | X4: 产出1 | Y4: 产出2 | Z4: 成为道侣后提供的技能ID | AA4: 技能1 | AB4: 触发道侣任务的好感度等级 | AC4: 触发道侣任务必须完成的事件id | AD4: 道侣任务ID | AF4: 特殊奖励好感度等级 | AG4: 特殊奖励ID | AH4: 特殊奖励数量
A5: 1 | B5: 1953 | C5: =VLOOKUP(B5,[1]语言配置表!$A:$B,2,FALSE) -> 雀灵儿 | D5: 2 | E5: bg_lh_quelinger | G5: 90 | H5: =_xlfn.TEXTJOIN(";",1,J5:L5) -> 1963;1964;1965 | I5: 1;3;6 | J5: 1963 | K5: 1964 | L5: 1965 | N5: =_xlfn.TEXTJOIN(";",1,P5:R5) -> 13005;11001;11002 | O5: =P5 -> 13005 | P5: 13005 | Q5: 11001 | R5: 11002 | T5: =_xlfn.TEXTJOIN(";",1,U5:W5) -> 30;11;23 | U5: 30 | V5: 11 | W5: 23 | X5: =VLOOKUP(V5,guajibuff!$A:$C,3,FALSE) -> 双修之旅·小 | Y5: =VLOOKUP(W5,guajibuff!$A:$C,3,FALSE) -> 商贾之道·大 | Z5: 17 | AA5: =VLOOKUP(Z5,daolvSkill!A:E,5,FALSE) -> 金之灵根 | AB5: 4 | AC5: 1 | AD5: 6006 | AF5: 3 | AG5: 1703 | AH5: 1
A6: 2 | B6: 1954 | C6: =VLOOKUP(B6,[1]语言配置表!$A:$B,2,FALSE) -> 云枝 | D6: 2 | E6: bg_lh_chidaoren | G6: 90 | H6: =_xlfn.TEXTJOIN(";",1,J6:L6) -> 1966;1967;1968 | I6: 1;3;6 | J6: 1966 | K6: 1967 | L6: 1968 | N6: =_xlfn.TEXTJOIN(";",1,P6:R6) -> 13010;11003;11004 | O6: =P6 -> 13010 | P6: 13010 | Q6: 11003 | R6: 11004 | T6: =_xlfn.TEXTJOIN(";",1,U6:W6) -> 30;11;33 | U6: 30 | V6: 11 | W6: 33 | X6: =VLOOKUP(V6,guajibuff!$A:$C,3,FALSE) -> 双修之旅·小 | Y6: =VLOOKUP(W6,guajibuff!$A:$C,3,FALSE) -> 席地论法·大 | Z6: 22 | AA6: =VLOOKUP(Z6,daolvSkill!A:E,5,FALSE) -> 水之灵根 | AB6: 5 | AC6: 1 | AD6: 6016 | AF6: 4 | AG6: 1703 | AH6: 1
A7: 3 | B7: 1955 | C7: =VLOOKUP(B7,[1]语言配置表!$A:$B,2,FALSE) -> 风瑶 | D7: 3 | E7: bg_lh_fengyao | G7: 100 | H7: 1969;1970;1971 | I7: 1;3;6 | J7: 1969 | K7: 1970 | L7: 1971 | N7: 13015;11006;11005 | O7: 13015 | P7: 13015 | Q7: 11006 | R7: 11005 | T7: 30;11;43 | U7: 30 | V7: 11 | W7: 43 | X7: =VLOOKUP(V7,guajibuff!$A:$C,3,FALSE) -> 双修之旅·小 | Y7: =VLOOKUP(W7,guajibuff!$A:$C,3,FALSE) -> 坎山寻宝·大 | Z7: 27 | AA7: =VLOOKUP(Z7,daolvSkill!A:E,5,FALSE) -> 木之灵根 | AB7: 6 | AC7: 1 | AD7: 6026 | AF7: 5 | AG7: 1703 | AH7: 1
A8: 4 | B8: 1956 | C8: =VLOOKUP(B8,[1]语言配置表!$A:$B,2,FALSE) -> 婉溪 | D8: 3 | E8: bg_lh_wanxi | G8: 100 | H8: 1972;1973;1974 | I8: 1;3;6 | J8: 1972 | K8: 1973 | L8: 1974 | N8: 13020;11008;11007 | O8: 13020 | P8: 13020 | Q8: 11008 | R8: 11007 | T8: 30;12;22 | U8: 30 | V8: 12 | W8: 22 | X8: =VLOOKUP(V8,guajibuff!$A:$C,3,FALSE) -> 双修之旅·中 | Y8: =VLOOKUP(W8,guajibuff!$A:$C,3,FALSE) -> 商贾之道·中 | Z8: 32 | AA8: =VLOOKUP(Z8,daolvSkill!A:E,5,FALSE) -> 火之灵根 | AB8: 7 | AC8: 1 | AD8: 6036 | AF8: 4 | AG8: 1703 | AH8: 1
A9: 7 | B9: 1959 | C9: =VLOOKUP(B9,[1]语言配置表!$A:$B,2,FALSE) -> 馨儿 | D9: 4 | E9: bg_lh_xiner | G9: 110 | H9: 1981;1982;1983 | I9: 1;3;6 | J9: 1981 | K9: 1982 | L9: 1983 | N9: 13025;11010;13511 | O9: 13025 | P9: 13025 | Q9: 11010 | R9: 13511 | T9: 30;12;32 | U9: 30 | V9: 12 | W9: 32 | X9: =VLOOKUP(V9,guajibuff!$A:$C,3,FALSE) -> 双修之旅·中 | Y9: =VLOOKUP(W9,guajibuff!$A:$C,3,FALSE) -> 席地论法·中 | Z9: 37 | AA9: =VLOOKUP(Z9,daolvSkill!A:E,5,FALSE) -> 土之灵根 | AB9: 8 | AC9: 1 | AD9: 9146 | AF9: 5 | AG9: 1703 | AH9: 1
A10: 8 | B10: 1960 | C10: =VLOOKUP(B10,[1]语言配置表!$A:$B,2,FALSE) -> 柳轻烟 | D10: 4 | E10: bg_lh_liuqingyan2 | G10: 110 | H10: 1984;1985;1986 | I10: 1;3;6 | J10: 1984 | K10: 1985 | L10: 1986 | N10: 13501;13506;13512 | O10: 13501 | P10: 13501 | Q10: 13506 | R10: 13512 | T10: 30;13;41 | U10: 30 | V10: 13 | W10: 41 | X10: =VLOOKUP(V10,guajibuff!$A:$C,3,FALSE) -> 双修之旅·大 | Y10: =VLOOKUP(W10,guajibuff!$A:$C,3,FALSE) -> 坎山寻宝·小 | Z10: 18 | AA10: =VLOOKUP(Z10,daolvSkill!A:E,5,FALSE) -> 金之灵根 | AB10: 9 | AC10: 1 | AD10: 9146 | AF10: 6 | AG10: 1703 | AH10: 1
A11: 5 | B11: 1957 | C11: =VLOOKUP(B11,[1]语言配置表!$A:$B,2,FALSE) -> 许由 | D11: 4 | E11: bg_lh_xuyou | G11: 100 | H11: =_xlfn.TEXTJOIN(";",1,J11:L11) -> 1975;1976;1977 | I11: 1;3;6 | J11: 1975 | K11: 1976 | L11: 1977 | N11: =_xlfn.TEXTJOIN(";",1,P11:R11) -> 13502;13507;13513 | O11: =P11 -> 13502 | P11: 13502 | Q11: 13507 | R11: 13513 | T11: =_xlfn.TEXTJOIN(";",1,U11:W11) -> 30;22;33 | U11: 30 | V11: 22 | W11: 33 | X11: =VLOOKUP(V11,guajibuff!$A:$C,3,FALSE) -> 商贾之道·中 | Y11: =VLOOKUP(W11,guajibuff!$A:$C,3,FALSE) -> 席地论法·大 | Z11: 23 | AA11: =VLOOKUP(Z11,daolvSkill!A:E,5,FALSE) -> 水之灵根 | AB11: -1 | AC11: 1 | AD11: -1 | AF11: 5 | AG11: 1703 | AH11: 3
A12: 6 | B12: 1958 | C12: =VLOOKUP(B12,[1]语言配置表!$A:$B,2,FALSE) -> 疯道人 | D12: 5 | E12: bg_lh_fengdaoren | G12: 100 | H12: =_xlfn.TEXTJOIN(";",1,J12:L12) -> 1978;1979;1980 | I12: 1;3;6 | J12: 1978 | K12: 1979 | L12: 1980 | N12: =_xlfn.TEXTJOIN(";",1,P12:R12) -> 13503;13508;13514 | O12: =P12 -> 13503 | P12: 13503 | Q12: 13508 | R12: 13514 | T12: =_xlfn.TEXTJOIN(";",1,U12:W12) -> 30;32;43 | U12: 30 | V12: 32 | W12: 43 | X12: =VLOOKUP(V12,guajibuff!$A:$C,3,FALSE) -> 席地论法·中 | Y12: =VLOOKUP(W12,guajibuff!$A:$C,3,FALSE) -> 坎山寻宝·大 | Z12: 28 | AA12: =VLOOKUP(Z12,daolvSkill!A:E,5,FALSE) -> 木之灵根 | AB12: -1 | AC12: 1 | AD12: -1 | AF12: 6 | AG12: 1703 | AH12: 3
A13: 9 | B13: 1961 | C13: =VLOOKUP(B13,[1]语言配置表!$A:$B,2,FALSE) -> 楚云缪 | D13: 5 | E13: bg_lh_chuyunmiao | G13: 100 | H13: =_xlfn.TEXTJOIN(";",1,J13:L13) -> 1987;1988;1989 | I13: 1;3;6 | J13: 1987 | K13: 1988 | L13: 1989 | N13: =_xlfn.TEXTJOIN(";",1,P13:R13) -> 13504;13509;13515 | O13: =P13 -> 13504 | P13: 13504 | Q13: 13509 | R13: 13515 | T13: =_xlfn.TEXTJOIN(";",1,U13:W13) -> 30;42;23 | U13: 30 | V13: 42 | W13: 23 | X13: =VLOOKUP(V13,guajibuff!$A:$C,3,FALSE) -> 坎山寻宝·中 | Y13: =VLOOKUP(W13,guajibuff!$A:$C,3,FALSE) -> 商贾之道·大 | Z13: 33 | AA13: =VLOOKUP(Z13,daolvSkill!A:E,5,FALSE) -> 火之灵根 | AB13: -1 | AC13: 1 | AD13: -1 | AF13: 7 | AG13: 1703 | AH13: 3
A14: 10 | B14: 1962 | C14: =VLOOKUP(B14,[1]语言配置表!$A:$B,2,FALSE) -> 林风 | D14: 6 | E14: bg_lh_linfeng | G14: 100 | H14: =_xlfn.TEXTJOIN(";",1,J14:L14) -> 1990;1991;1992 | I14: 1;3;6 | J14: 1990 | K14: 1991 | L14: 1992 | N14: =_xlfn.TEXTJOIN(";",1,P14:R14) -> 13505;13510;13516 | O14: =P14 -> 13505 | P14: 13505 | Q14: 13510 | R14: 13516 | T14: =_xlfn.TEXTJOIN(";",1,U14:W14) -> 30;22;43 | U14: 30 | V14: 22 | W14: 43 | X14: =VLOOKUP(V14,guajibuff!$A:$C,3,FALSE) -> 商贾之道·中 | Y14: =VLOOKUP(W14,guajibuff!$A:$C,3,FALSE) -> 坎山寻宝·大 | Z14: 38 | AA14: =VLOOKUP(Z14,daolvSkill!A:E,5,FALSE) -> 土之灵根 | AB14: -1 | AC14: 1 | AD14: -1 | AF14: 8 | AG14: 1703 | AH14: 3

Sheet emotionConfig
A1: ID | B1: type | C1: icon | D1: des | F1: hanganUpRate
A2: int | B2: int | C2: string | D2: int | F2: int[]
A4: ID | B4: 类型 1=好心情 2=平衡心情 3=坏心情 | C4: icon | D4: 描述ID | E4: 描述（策划） | F4: 心情影响好感度的范围 100=10%
A5: 1 | B5: 1 | D5: 2043 | E5: 心情很好，送他礼物可获得更多好感度 | F5: 1100;1300 | G5: 开心
A6: 2 | B6: 2 | D6: 2044 | E6: 心情一般 | F6: 900;1100 | G6: 一般
A7: 3 | B7: 3 | D7: 2045 | E7: 心情失落，送他礼物获得低于标准值的好感度 | F7: 700;900 | G7: 失落

Sheet daolvSkill
A1: ID | B1: AttrID | C1: lv | D1: name | F1: des | H1: para | I1: type
A2: int | B2: int | C2: int | D2: int | F2: int | H2: int[] | I2: int
A4: ID | B4: 对应AttributeConfig中的ID | C4: 等级 | D4: 名称 | E4: 名称 | F4: 描述 | G4: 描述 | H4: 参数 | I4: 类型 1=唯一 2=叠加 | J4: 成长所需礼物ID | K4: 每单位增加的值
A5: 1 | B5: 101 | C5: 1 | D5: 2046 | E5: 生命增幅 | F5: 2054 | G5: 玩家生命+{0}% | H5: 3 | I5: 2
A6: 2 | B6: 101 | C6: 2 | D6: 2046 | E6: 生命增幅 | F6: 2054 | G6: 玩家生命+{0}% | H6: 6 | I6: 2
A7: 3 | B7: 101 | C7: 3 | D7: 2046 | E7: 生命增幅 | F7: 2054 | G7: 玩家生命+{0}% | H7: 9 | I7: 2
A8: 4 | B8: 101 | C8: 4 | D8: 2046 | E8: 生命增幅 | F8: 2054 | G8: 玩家生命+{0}% | H8: 12 | I8: 2
A9: 5 | B9: 101 | C9: 5 | D9: 2046 | E9: 生命增幅 | F9: 2054 | G9: 玩家生命+{0}% | H9: 15 | I9: 2
A10: 6 | B10: 102 | C10: =C5 -> 1 | D10: 2047 | E10: 攻击增幅 | F10: 2055 | G10: 玩家攻击+{0}% | H10: 3 | I10: 2
A11: 7 | B11: 102 | C11: =C6 -> 2 | D11: 2047 | E11: 攻击增幅 | F11: 2055 | G11: 玩家攻击+{0}% | H11: 6 | I11: 2
A12: 8 | B12: 102 | C12: 3 | D12: 2047 | E12: 攻击增幅 | F12: 2055 | G12: 玩家攻击+{0}% | H12: 9 | I12: 2
A13: 9 | B13: 102 | C13: 4 | D13: 2047 | E13: 攻击增幅 | F13: 2055 | G13: 玩家攻击+{0}% | H13: 12 | I13: 2
A14: 10 | B14: 102 | C14: 5 | D14: 2047 | E14: 攻击增幅 | F14: 2055 | G14: 玩家攻击+{0}% | H14: 15 | I14: 2
A15: 11 | B15: 103 | C15: 1 | D15: 2048 | E15: 防御增幅 | F15: 2056 | G15: 玩家防御+{0}% | H15: 3 | I15: 2
A16: 12 | B16: 103 | C16: 2 | D16: 2048 | E16: 防御增幅 | F16: 2056 | G16: 玩家防御+{0}% | H16: 6 | I16: 2
A17: 13 | B17: 103 | C17: 3 | D17: 2048 | E17: 防御增幅 | F17: 2056 | G17: 玩家防御+{0}% | H17: 9 | I17: 2
A18: 14 | B18: 103 | C18: 4 | D18: 2048 | E18: 防御增幅 | F18: 2056 | G18: 玩家防御+{0}% | H18: 12 | I18: 2
A19: 15 | B19: 103 | C19: 5 | D19: 2048 | E19: 防御增幅 | F19: 2056 | G19: 玩家防御+{0}% | H19: 15 | I19: 2
A20: 16 | B20: 106 | C20: 1 | D20: 2049 | E20: 金之灵根 | F20: 2057 | G20: 玩家金灵根+{0} | H20: 2 | I20: 1
A21: 17 | B21: 106 | C21: 2 | D21: 2049 | E21: 金之灵根 | F21: 2057 | G21: 玩家金灵根+{0} | H21: 4 | I21: 1
A22: 18 | B22: 106 | C22: 3 | D22: 2049 | E22: 金之灵根 | F22: 2057 | G22: 玩家金灵根+{0} | H22: 6 | I22: 1
A23: 19 | B23: 106 | C23: 4 | D23: 2049 | E23: 金之灵根 | F23: 2057 | G23: 玩家金灵根+{0} | H23: 8 | I23: 1
A24: 20 | B24: 106 | C24: 5 | D24: 2049 | E24: 金之灵根 | F24: 2057 | G24: 玩家金灵根+{0} | H24: 10 | I24: 1
A25: 21 | B25: 107 | C25: 1 | D25: 2050 | E25: 水之灵根 | F25: 2058 | G25: 玩家水灵根+{0} | H25: 2 | I25: 1
A26: 22 | B26: 107 | C26: 2 | D26: 2050 | E26: 水之灵根 | F26: 2058 | G26: 玩家水灵根+{0} | H26: 4 | I26: 1
A27: 23 | B27: 107 | C27: 3 | D27: 2050 | E27: 水之灵根 | F27: 2058 | G27: 玩家水灵根+{0} | H27: 6 | I27: 1
A28: 24 | B28: 107 | C28: 4 | D28: 2050 | E28: 水之灵根 | F28: 2058 | G28: 玩家水灵根+{0} | H28: 8 | I28: 1
A29: 25 | B29: 107 | C29: 5 | D29: 2050 | E29: 水之灵根 | F29: 2058 | G29: 玩家水灵根+{0} | H29: 10 | I29: 1
A30: 26 | B30: 108 | C30: 1 | D30: 2051 | E30: 木之灵根 | F30: 2059 | G30: 玩家木灵根+{0} | H30: 2 | I30: 1
A31: 27 | B31: 108 | C31: 2 | D31: 2051 | E31: 木之灵根 | F31: 2059 | G31: 玩家木灵根+{0} | H31: 4 | I31: 1
A32: 28 | B32: 108 | C32: 3 | D32: 2051 | E32: 木之灵根 | F32: 2059 | G32: 玩家木灵根+{0} | H32: 6 | I32: 1
A33: 29 | B33: 108 | C33: 4 | D33: 2051 | E33: 木之灵根 | F33: 2059 | G33: 玩家木灵根+{0} | H33: 8 | I33: 1
A34: 30 | B34: 108 | C34: 5 | D34: 2051 | E34: 木之灵根 | F34: 2059 | G34: 玩家木灵根+{0} | H34: 10 | I34: 1
A35: 31 | B35: 109 | C35: 1 | D35: 2052 | E35: 火之灵根 | F35: 2060 | G35: 玩家火灵根+{0} | H35: 2 | I35: 1
A36: 32 | B36: 109 | C36: 2 | D36: 2052 | E36: 火之灵根 | F36: 2060 | G36: 玩家火灵根+{0} | H36: 4 | I36: 1
A37: 33 | B37: 109 | C37: 3 | D37: 2052 | E37: 火之灵根 | F37: 2060 | G37: 玩家火灵根+{0} | H37: 6 | I37: 1
A38: 34 | B38: 109 | C38: 4 | D38: 2052 | E38: 火之灵根 | F38: 2060 | G38: 玩家火灵根+{0} | H38: 8 | I38: 1
A39: 35 | B39: 109 | C39: 5 | D39: 2052 | E39: 火之灵根 | F39: 2060 | G39: 玩家火灵根+{0} | H39: 10 | I39: 1
A40: 36 | B40: 110 | C40: 1 | D40: 2053 | E40: 土之灵根 | F40: 2061 | G40: 玩家土灵根+{0} | H40: 2 | I40: 1
A41: 37 | B41: 110 | C41: 2 | D41: 2053 | E41: 土之灵根 | F41: 2061 | G41: 玩家土灵根+{0} | H41: 4 | I41: 1
A42: 38 | B42: 110 | C42: 3 | D42: 2053 | E42: 土之灵根 | F42: 2061 | G42: 玩家土灵根+{0} | H42: 6 | I42: 1
A43: 39 | B43: 110 | C43: 4 | D43: 2053 | E43: 土之灵根 | F43: 2061 | G43: 玩家土灵根+{0} | H43: 8 | I43: 1
A44: 40 | B44: 110 | C44: 5 | D44: 2053 | E44: 土之灵根 | F44: 2061 | G44: 玩家土灵根+{0} | H44: 10 | I44: 1

Sheet guajibuff
A1: ID | B1: name | D1: Quality | E1: GivingRate | F1: paraValue | G1: des
A2: int | B2: int | D2: int | E2: int | F2: int | G2: int
A4: ID | B4: 名称 | C4: 名称 | D4: 品质 | E4: 产出比例 100=100% | F4: 对应的para值 | G4: 描述 | H4: 说明
A5: 1 | B5: 2063 | C5: 慷概之心·小 | D5: 1 | E5: 25 | F5: 5 | G5: 2062 | H5: 这位道友离开时有{0}%概率赠与玩家奖励
A6: 2 | B6: 2064 | C6: 慷概之心·中 | D6: 1 | E6: 50 | F6: 5 | G6: 2062 | H6: 这位道友离开时有{0}%概率赠与玩家奖励
A7: 3 | B7: 2065 | C7: 慷概之心·大 | D7: 1 | E7: 75 | F7: 5 | G7: 2062 | H7: 这位道友离开时有{0}%概率赠与玩家奖励
A8: 4 | B8: 2066 | C8: 慷概之心·极 | D8: 1 | E8: 100 | F8: 5 | G8: 2062 | H8: 这位道友离开时有{0}%概率赠与玩家奖励
A10: 11 | B10: 1993 | C10: 双修之旅·小 | D10: 2 | E10: 25 | F10: 1 | G10: =B10+16 -> 2009 | H10: 这位道友离开时会给与玩家少量修为奖励
A11: 12 | B11: 1994 | C11: 双修之旅·中 | D11: 3 | E11: 50 | F11: 1 | G11: =B11+16 -> 2010 | H11: 这位道友离开时会给与玩家一些修为奖励
A12: 13 | B12: 1995 | C12: 双修之旅·大 | D12: 4 | E12: 75 | F12: 1 | G12: 2011 | H12: 这位道友离开时会给与玩家很多修为奖励
A13: 14 | B13: 1996 | C13: 双修之旅·极 | D13: 5 | E13: 100 | F13: 1 | G13: 2012 | H13: 这位道友离开时会给与玩家丰厚修为奖励
A15: 21 | B15: =B10+4 -> 1997 | C15: 商贾之道·小 | D15: 2 | E15: 25 | F15: 2 | G15: =B15+16 -> 2013 | H15: 这位道友离开时会给与玩家少量铜钱奖励
A16: 22 | B16: =B11+4 -> 1998 | C16: 商贾之道·中 | D16: 3 | E16: 50 | F16: 2 | G16: =B16+16 -> 2014 | H16: 这位道友离开时会给与玩家一些铜钱奖励
A17: 23 | B17: 1999 | C17: 商贾之道·大 | D17: 4 | E17: 75 | F17: 2 | G17: 2015 | H17: 这位道友离开时会给与玩家很多铜钱奖励
A18: 24 | B18: 2000 | C18: 商贾之道·极 | D18: 5 | E18: 100 | F18: 2 | G18: 2016 | H18: 这位道友离开时会给与玩家丰厚铜钱奖励
A20: 31 | B20: =B15+4 -> 2001 | C20: 席地论法·小 | D20: 2 | E20: 25 | F20: 3 | G20: =B20+16 -> 2017 | H20: 这位道友离开时会给与玩家少量功法灵气奖励
A21: 32 | B21: =B16+4 -> 2002 | C21: 席地论法·中 | D21: 3 | E21: 50 | F21: 3 | G21: =B21+16 -> 2018 | H21: 这位道友离开时会给与玩家一些功法灵气奖励
A22: 33 | B22: 2003 | C22: 席地论法·大 | D22: 4 | E22: 75 | F22: 3 | G22: 2019 | H22: 这位道友离开时会给与玩家很多功法灵气奖励
A23: 34 | B23: 2004 | C23: 席地论法·极 | D23: 5 | E23: 100 | F23: 3 | G23: 2020 | H23: 这位道友离开时会给与玩家丰厚功法灵气奖励
A25: 41 | B25: =B20+4 -> 2005 | C25: 坎山寻宝·小 | D25: 2 | E25: 25 | F25: 4 | G25: =B25+16 -> 2021 | H25: 这位道友离开时会给与玩家少量法宝灵韵奖励
A26: 42 | B26: =B21+4 -> 2006 | C26: 坎山寻宝·中 | D26: 3 | E26: 50 | F26: 4 | G26: =B26+16 -> 2022 | H26: 这位道友离开时会给与玩家一些法宝灵韵奖励
A27: 43 | B27: 2007 | C27: 坎山寻宝·大 | D27: 4 | E27: 75 | F27: 4 | G27: 2023 | H27: 这位道友离开时会给与玩家很多法宝灵韵奖励
A28: 44 | B28: 2008 | C28: 坎山寻宝·极 | D28: 5 | E28: 100 | F28: 4 | G28: 2024 | H28: 这位道友离开时会给与玩家丰厚法宝灵韵奖励

Sheet 道友加成辅助
A1: BuffType | C1: BuffValue
A2: 1 | B2: 属性加成 | C2: 属性ID；加成数值
A3: 2
A4: 3
A5: 4
A6: 5
A7: 6
A8: 7
A9: 8
A10: 9
A11: 10
A12: 11
A13: 12
A14: 13

Sheet DaoyouLevelupConfig
A1: ID | B1: name | D1: exp | E1: prizeID | F1: prizeNum | G1: guajiGrowup
A2: int | B2: int | D2: int | E2: int[] | F2: int[] | G2: int
A4: LV | B4: 名称 | D4: 升级所需经验 | E4: 道具奖励ID | F4: 道具奖励数量 | G4: 挂机增益成长率 100=100%
A5: 1 | B5: 2025 | C5: 好感度1 | D5: 1000 | E5: -1 | F5: -1 | G5: 0
A6: 2 | B6: 2026 | C6: 好感度2 | D6: 2000 | E6: 1701 | F6: 1 | G6: 100
A7: 3 | B7: 2027 | C7: 好感度3 | D7: 3000 | E7: 1701 | F7: 2 | G7: 112
A8: 4 | B8: 2028 | C8: 好感度4 | D8: 4000 | E8: 1703 | F8: 1 | G8: 125
A9: 5 | B9: 2029 | C9: 好感度5 | D9: 5000 | E9: 1703 | F9: 1 | G9: 137
A10: 6 | B10: 2030 | C10: 好感度6 | D10: 6000 | E10: 1703 | F10: 2 | G10: 150
A11: 7 | B11: 2031 | C11: 好感度7 | D11: 7000 | E11: 1703 | F11: 2 | G11: 162
A12: 8 | B12: 2032 | C12: 好感度8 | D12: 8000 | E12: 1704 | F12: 1 | G12: 175
A13: 9 | B13: 2033 | C13: 好感度9 | D13: 9000 | E13: 1704 | F13: 1 | G13: 187
A14: 10 | B14: 2034 | C14: 好感度10 | D14: -1 | E14: 1704 | F14: 1 | G14: 200

Sheet DaoyouGiftConfig
A1: ID | B1: ItemID | D1: emotionValue
A2: int | B2: int | D2: int
A4: ID | B4: 道具ID | C4: 道具名称 | D4: 默认增加的好感度值
A5: 1 | B5: 1501 | C5: =VLOOKUP(B5,[2]ItemConfig!$A:$C,3,FALSE) -> 清茶 | D5: 300
A6: 2 | B6: 1502 | C6: =VLOOKUP(B6,[2]ItemConfig!$A:$C,3,FALSE) -> 茉莉花茶 | D6: 500
A8: 301 | B8: 1201 | C8: =VLOOKUP(B8,[2]ItemConfig!$A:$C,3,FALSE) -> 灵血草 | D8: 100
A9: 302 | B9: 1202 | C9: =VLOOKUP(B9,[2]ItemConfig!$A:$C,3,FALSE) -> 玄玉髓 | D9: 100
A10: 303 | B10: 1203 | C10: =VLOOKUP(B10,[2]ItemConfig!$A:$C,3,FALSE) -> 赤阳砂 | D10: 100
A11: 304 | B11: 1204 | C11: =VLOOKUP(B11,[2]ItemConfig!$A:$C,3,FALSE) -> 火灵果 | D11: 100
A12: 305 | B12: 1205 | C12: =VLOOKUP(B12,[2]ItemConfig!$A:$C,3,FALSE) -> 婴魂草 | D12: 100
A13: 306 | B13: 1206 | C13: =VLOOKUP(B13,[2]ItemConfig!$A:$C,3,FALSE) -> 灵魄藤 | D13: 100
A14: 307 | B14: 1207 | C14: =VLOOKUP(B14,[2]ItemConfig!$A:$C,3,FALSE) -> 灵冥石 | D14: 100
A15: 308 | B15: 1208 | C15: =VLOOKUP(B15,[2]ItemConfig!$A:$C,3,FALSE) -> 玄金砂 | D15: 100
A16: 309 | B16: 1209 | C16: =VLOOKUP(B16,[2]ItemConfig!$A:$C,3,FALSE) -> 紫玄晶 | D16: 100
A17: 310 | B17: 1210 | C17: =VLOOKUP(B17,[2]ItemConfig!$A:$C,3,FALSE) -> 丹心花 | D17: 100
A18: 311 | B18: 1211 | C18: =VLOOKUP(B18,[2]ItemConfig!$A:$C,3,FALSE) -> 太冥草 | D18: 100
A19: 312 | B19: 1212 | C19: =VLOOKUP(B19,[2]ItemConfig!$A:$C,3,FALSE) -> 星炎草 | D19: 100
A20: 313 | B20: 1213 | C20: =VLOOKUP(B20,[2]ItemConfig!$A:$C,3,FALSE) -> 混元晶 | D20: 100
A21: 314 | B21: 1214 | C21: =VLOOKUP(B21,[2]ItemConfig!$A:$C,3,FALSE) -> 地髓晶 | D21: 100
A22: 315 | B22: 1215 | C22: =VLOOKUP(B22,[2]ItemConfig!$A:$C,3,FALSE) -> 灵月石 | D22: 100
A23: 316 | B23: 1216 | C23: =VLOOKUP(B23,[2]ItemConfig!$A:$C,3,FALSE) -> 玄雷果 | D23: 100
A24: 317 | B24: 1217 | C24: =VLOOKUP(B24,[2]ItemConfig!$A:$C,3,FALSE) -> 龙筋草 | D24: 100
A25: 318 | B25: 1218 | C25: =VLOOKUP(B25,[2]ItemConfig!$A:$C,3,FALSE) -> 太虚花 | D25: 100
A26: 319 | B26: 1219 | C26: =VLOOKUP(B26,[2]ItemConfig!$A:$C,3,FALSE) -> 升仙丹 | D26: 100
A27: 320 | B27: 1220 | C27: =VLOOKUP(B27,[2]ItemConfig!$A:$C,3,FALSE) -> 归虚花 | D27: 100
A28: 321 | B28: 1221 | C28: =VLOOKUP(B28,[2]ItemConfig!$A:$C,3,FALSE) -> 真阳骨 | D28: 100
A29: 322 | B29: 1222 | C29: =VLOOKUP(B29,[2]ItemConfig!$A:$C,3,FALSE) -> 太玄髓 | D29: 100
A30: 323 | B30: 1223 | C30: =VLOOKUP(B30,[2]ItemConfig!$A:$C,3,FALSE) -> 离魄花 | D30: 100
A31: 324 | B31: 1224 | C31: =VLOOKUP(B31,[2]ItemConfig!$A:$C,3,FALSE) -> 裂界藤 | D31: 100
A32: 325 | B32: 1225 | C32: =VLOOKUP(B32,[2]ItemConfig!$A:$C,3,FALSE) -> 寂灭沙 | D32: 100
A33: 326 | B33: 1226 | C33: =VLOOKUP(B33,[2]ItemConfig!$A:$C,3,FALSE) -> 天罡心核 | D33: 100
A35: 501 | B35: 13001 | C35: =VLOOKUP(B35,[2]ItemConfig!$A:$C,3,FALSE) -> 太虚幻剑经碎片 | D35: 1
A36: 502 | B36: 13002 | C36: =VLOOKUP(B36,[2]ItemConfig!$A:$C,3,FALSE) -> 天罡剑气诀碎片 | D36: 1
A37: 503 | B37: 13003 | C37: =VLOOKUP(B37,[2]ItemConfig!$A:$C,3,FALSE) -> 血刃金煌功碎片 | D37: 1
A38: 504 | B38: 13004 | C38: =VLOOKUP(B38,[2]ItemConfig!$A:$C,3,FALSE) -> 飞刃碎片 | D38: 1
A39: 505 | B39: 13005 | C39: =VLOOKUP(B39,[2]ItemConfig!$A:$C,3,FALSE) -> 金针碎片 | D39: 1
A40: 506 | B40: 13006 | C40: =VLOOKUP(B40,[2]ItemConfig!$A:$C,3,FALSE) -> 碧落幽冥劲碎片 | D40: 1
A41: 507 | B41: 13007 | C41: =VLOOKUP(B41,[2]ItemConfig!$A:$C,3,FALSE) -> 雾隐千流法碎片 | D41: 1
A42: 508 | B42: 13008 | C42: =VLOOKUP(B42,[2]ItemConfig!$A:$C,3,FALSE) -> 功法-水3碎片 | D42: 1
A43: 509 | B43: 13009 | C43: =VLOOKUP(B43,[2]ItemConfig!$A:$C,3,FALSE) -> 水球碎片 | D43: 1
A44: 510 | B44: 13010 | C44: =VLOOKUP(B44,[2]ItemConfig!$A:$C,3,FALSE) -> 冰刀碎片 | D44: 1
A45: 511 | B45: 13011 | C45: =VLOOKUP(B45,[2]ItemConfig!$A:$C,3,FALSE) -> 瘴影千丝术碎片 | D45: 1
A46: 512 | B46: 13012 | C46: =VLOOKUP(B46,[2]ItemConfig!$A:$C,3,FALSE) -> 蚀骨腐血掌碎片 | D46: 1
A47: 513 | B47: 13013 | C47: =VLOOKUP(B47,[2]ItemConfig!$A:$C,3,FALSE) -> 功法-木3碎片 | D47: 1
A48: 514 | B48: 13014 | C48: =VLOOKUP(B48,[2]ItemConfig!$A:$C,3,FALSE) -> 竹刺碎片 | D48: 1
A49: 515 | B49: 13015 | C49: =VLOOKUP(B49,[2]ItemConfig!$A:$C,3,FALSE) -> 飞叶碎片 | D49: 1
A50: 516 | B50: 13016 | C50: =VLOOKUP(B50,[2]ItemConfig!$A:$C,3,FALSE) -> 烈焰剑碎片 | D50: 1
A51: 517 | B51: 13017 | C51: =VLOOKUP(B51,[2]ItemConfig!$A:$C,3,FALSE) -> 赤焰龙吟功碎片 | D51: 1
A52: 518 | B52: 13018 | C52: =VLOOKUP(B52,[2]ItemConfig!$A:$C,3,FALSE) -> 朱雀燎原指碎片 | D52: 1
A53: 519 | B53: 13019 | C53: =VLOOKUP(B53,[2]ItemConfig!$A:$C,3,FALSE) -> 火球碎片 | D53: 1
A54: 520 | B54: 13020 | C54: =VLOOKUP(B54,[2]ItemConfig!$A:$C,3,FALSE) -> 火刀碎片 | D54: 1
A55: 521 | B55: 13021 | C55: =VLOOKUP(B55,[2]ItemConfig!$A:$C,3,FALSE) -> 黄尘灭魂刺碎片 | D55: 1
A56: 522 | B56: 13022 | C56: =VLOOKUP(B56,[2]ItemConfig!$A:$C,3,FALSE) -> 地裂屠龙斩碎片 | D56: 1
A57: 523 | B57: 13023 | C57: =VLOOKUP(B57,[2]ItemConfig!$A:$C,3,FALSE) -> 功法-土3碎片 | D57: 1
A58: 524 | B58: 13024 | C58: =VLOOKUP(B58,[2]ItemConfig!$A:$C,3,FALSE) -> 落石碎片 | D58: 1
A59: 525 | B59: 13025 | C59: =VLOOKUP(B59,[2]ItemConfig!$A:$C,3,FALSE) -> 小石头碎片 | D59: 1
A60: 526 | B60: 13501 | C60: =VLOOKUP(B60,[2]ItemConfig!$A:$C,3,FALSE) -> 天衍星辰诀碎片 | D60: 1
A61: 527 | B61: 13502 | C61: =VLOOKUP(B61,[2]ItemConfig!$A:$C,3,FALSE) -> 法宝秘籍碎片 | D61: 1
A62: 528 | B62: 13503 | C62: =VLOOKUP(B62,[2]ItemConfig!$A:$C,3,FALSE) -> 崩脉决碎片 | D62: 1
A63: 529 | B63: 13504 | C63: =VLOOKUP(B63,[2]ItemConfig!$A:$C,3,FALSE) -> 两仪决碎片 | D63: 1
A64: 530 | B64: 13505 | C64: =VLOOKUP(B64,[2]ItemConfig!$A:$C,3,FALSE) -> 火焰决碎片 | D64: 1
A65: 531 | B65: 13506 | C65: =VLOOKUP(B65,[2]ItemConfig!$A:$C,3,FALSE) -> 乾坤巨灵诀碎片 | D65: 1
A66: 532 | B66: 13507 | C66: =VLOOKUP(B66,[2]ItemConfig!$A:$C,3,FALSE) -> 极速齿轮碎片 | D66: 1
A67: 533 | B67: 13508 | C67: =VLOOKUP(B67,[2]ItemConfig!$A:$C,3,FALSE) -> 太虚剑意碎片 | D67: 1
A68: 534 | B68: 13509 | C68: =VLOOKUP(B68,[2]ItemConfig!$A:$C,3,FALSE) -> 青莲净体诀碎片 | D68: 1
A69: 535 | B69: 13510 | C69: =VLOOKUP(B69,[2]ItemConfig!$A:$C,3,FALSE) -> 碧霄回春术碎片 | D69: 1
A70: 536 | B70: 13511 | C70: =VLOOKUP(B70,[2]ItemConfig!$A:$C,3,FALSE) -> 血祭神通碎片 | D70: 1
A71: 537 | B71: 13512 | C71: =VLOOKUP(B71,[2]ItemConfig!$A:$C,3,FALSE) -> 金煞决碎片 | D71: 1
A72: 538 | B72: 13513 | C72: =VLOOKUP(B72,[2]ItemConfig!$A:$C,3,FALSE) -> 毒瘴领域碎片 | D72: 1
A73: 539 | B73: 13514 | C73: =VLOOKUP(B73,[2]ItemConfig!$A:$C,3,FALSE) -> 毒爆碎片 | D73: 1
A74: 540 | B74: 13515 | C74: =VLOOKUP(B74,[2]ItemConfig!$A:$C,3,FALSE) -> 异常转移碎片 | D74: 1
A75: 541 | B75: 13516 | C75: =VLOOKUP(B75,[2]ItemConfig!$A:$C,3,FALSE) -> 阴水碎片 | D75: 1
A76: 542 | B76: 13517 | C76: =VLOOKUP(B76,[2]ItemConfig!$A:$C,3,FALSE) -> 灵油碎片 | D76: 1
A77: 543 | B77: 13518 | C77: =VLOOKUP(B77,[2]ItemConfig!$A:$C,3,FALSE) -> 厚土护体碎片 | D77: 1
A78: 544 | B78: 13519 | C78: =VLOOKUP(B78,[2]ItemConfig!$A:$C,3,FALSE) -> 金沙碎片 | D78: 1
A79: 545 | B79: 11001 | C79: =VLOOKUP(B79,[2]ItemConfig!$A:$C,3,FALSE) -> 神龙鼎碎片 | D79: 1
A80: 546 | B80: 11002 | C80: =VLOOKUP(B80,[2]ItemConfig!$A:$C,3,FALSE) -> 噬空齿刃碎片 | D80: 1
A81: 547 | B81: 11003 | C81: =VLOOKUP(B81,[2]ItemConfig!$A:$C,3,FALSE) -> 翡翠葫芦碎片 | D81: 1
A82: 548 | B82: 11004 | C82: =VLOOKUP(B82,[2]ItemConfig!$A:$C,3,FALSE) -> 混沌珠碎片 | D82: 1
A83: 549 | B83: 11005 | C83: =VLOOKUP(B83,[2]ItemConfig!$A:$C,3,FALSE) -> 绝脉瓶碎片 | D83: 1
A84: 550 | B84: 11006 | C84: =VLOOKUP(B84,[2]ItemConfig!$A:$C,3,FALSE) -> 九幽镇魂瓶碎片 | D84: 1
A85: 551 | B85: 11007 | C85: =VLOOKUP(B85,[2]ItemConfig!$A:$C,3,FALSE) -> 玉莲守心灯碎片 | D85: 1
A86: 552 | B86: 11008 | C86: =VLOOKUP(B86,[2]ItemConfig!$A:$C,3,FALSE) -> 融灵塔碎片 | D86: 1
A87: 553 | B87: 11009 | C87: =VLOOKUP(B87,[2]ItemConfig!$A:$C,3,FALSE) -> 禁元珠碎片 | D87: 1
A88: 554 | B88: 11010 | C88: =VLOOKUP(B88,[2]ItemConfig!$A:$C,3,FALSE) -> 玄龟盾碎片 | D88: 1
A89: 555 | B89: 11011 | C89: =VLOOKUP(B89,[2]ItemConfig!$A:$C,3,FALSE) -> 天殇血刃剑碎片 | D89: 1

Sheet DaoyouguajiResourcLevel
A1: ID | B1: para1 | C1: para2 | D1: para3 | E1: para4 | F1: para5
A2: int | B2: int | C2: int | D2: int | E2: int | F2: int
A4: ID | B4: 玩家修为产出 | C4: 铜钱产出 | D4: 功法灵气 | E4: 法宝灵韵 | F4: 赠与概率
A5: 1 | B5: =ROUND([3]ResourceLevelConfig!$E5*0.05,0) -> 5 | C5: =ROUND([3]ResourceLevelConfig!$C5*0.05,0) -> 50 | D5: =ROUND([3]ResourceLevelConfig!$G5*0.05,0) -> 3 | E5: =ROUND([3]ResourceLevelConfig!$H5*0.05,0) -> 3 | F5: 201
A6: 2 | B6: =ROUND([3]ResourceLevelConfig!$E6*0.05,0) -> 5 | C6: =ROUND([3]ResourceLevelConfig!$C6*0.05,0) -> 51 | D6: =ROUND([3]ResourceLevelConfig!$G6*0.05,0) -> 3 | E6: =ROUND([3]ResourceLevelConfig!$H6*0.05,0) -> 3 | F6: 202
A7: 3 | B7: =ROUND([3]ResourceLevelConfig!$E7*0.05,0) -> 5 | C7: =ROUND([3]ResourceLevelConfig!$C7*0.05,0) -> 51 | D7: =ROUND([3]ResourceLevelConfig!$G7*0.05,0) -> 3 | E7: =ROUND([3]ResourceLevelConfig!$H7*0.05,0) -> 3 | F7: 203
A8: 4 | B8: =ROUND([3]ResourceLevelConfig!$E8*0.05,0) -> 5 | C8: =ROUND([3]ResourceLevelConfig!$C8*0.05,0) -> 52 | D8: =ROUND([3]ResourceLevelConfig!$G8*0.05,0) -> 3 | E8: =ROUND([3]ResourceLevelConfig!$H8*0.05,0) -> 3 | F8: 204
A9: 5 | B9: =ROUND([3]ResourceLevelConfig!$E9*0.05,0) -> 5 | C9: =ROUND([3]ResourceLevelConfig!$C9*0.05,0) -> 52 | D9: =ROUND([3]ResourceLevelConfig!$G9*0.05,0) -> 3 | E9: =ROUND([3]ResourceLevelConfig!$H9*0.05,0) -> 3 | F9: 205
A10: 6 | B10: =ROUND([3]ResourceLevelConfig!$E10*0.05,0) -> 6 | C10: =ROUND([3]ResourceLevelConfig!$C10*0.05,0) -> 53 | D10: =ROUND([3]ResourceLevelConfig!$G10*0.05,0) -> 3 | E10: =ROUND([3]ResourceLevelConfig!$H10*0.05,0) -> 3 | F10: 206
A11: 7 | B11: =ROUND([3]ResourceLevelConfig!$E11*0.05,0) -> 6 | C11: =ROUND([3]ResourceLevelConfig!$C11*0.05,0) -> 53 | D11: =ROUND([3]ResourceLevelConfig!$G11*0.05,0) -> 3 | E11: =ROUND([3]ResourceLevelConfig!$H11*0.05,0) -> 3 | F11: 207
A12: 8 | B12: =ROUND([3]ResourceLevelConfig!$E12*0.05,0) -> 6 | C12: =ROUND([3]ResourceLevelConfig!$C12*0.05,0) -> 54 | D12: =ROUND([3]ResourceLevelConfig!$G12*0.05,0) -> 3 | E12: =ROUND([3]ResourceLevelConfig!$H12*0.05,0) -> 3 | F12: 208
A13: 9 | B13: =ROUND([3]ResourceLevelConfig!$E13*0.05,0) -> 6 | C13: =ROUND([3]ResourceLevelConfig!$C13*0.05,0) -> 54 | D13: =ROUND([3]ResourceLevelConfig!$G13*0.05,0) -> 3 | E13: =ROUND([3]ResourceLevelConfig!$H13*0.05,0) -> 3 | F13: 209
A14: 10 | B14: =ROUND([3]ResourceLevelConfig!$E14*0.05,0) -> 6 | C14: =ROUND([3]ResourceLevelConfig!$C14*0.05,0) -> 55 | D14: =ROUND([3]ResourceLevelConfig!$G14*0.05,0) -> 3 | E14: =ROUND([3]ResourceLevelConfig!$H14*0.05,0) -> 3 | F14: 210
A15: 11 | B15: =ROUND([3]ResourceLevelConfig!$E15*0.05,0) -> 6 | C15: =ROUND([3]ResourceLevelConfig!$C15*0.05,0) -> 55 | D15: =ROUND([3]ResourceLevelConfig!$G15*0.05,0) -> 3 | E15: =ROUND([3]ResourceLevelConfig!$H15*0.05,0) -> 3 | F15: 211
A16: 12 | B16: =ROUND([3]ResourceLevelConfig!$E16*0.05,0) -> 6 | C16: =ROUND([3]ResourceLevelConfig!$C16*0.05,0) -> 56 | D16: =ROUND([3]ResourceLevelConfig!$G16*0.05,0) -> 3 | E16: =ROUND([3]ResourceLevelConfig!$H16*0.05,0) -> 3 | F16: 212
A17: 13 | B17: =ROUND([3]ResourceLevelConfig!$E17*0.05,0) -> 6 | C17: =ROUND([3]ResourceLevelConfig!$C17*0.05,0) -> 56 | D17: =ROUND([3]ResourceLevelConfig!$G17*0.05,0) -> 3 | E17: =ROUND([3]ResourceLevelConfig!$H17*0.05,0) -> 3 | F17: 213
A18: 14 | B18: =ROUND([3]ResourceLevelConfig!$E18*0.05,0) -> 6 | C18: =ROUND([3]ResourceLevelConfig!$C18*0.05,0) -> 57 | D18: =ROUND([3]ResourceLevelConfig!$G18*0.05,0) -> 3 | E18: =ROUND([3]ResourceLevelConfig!$H18*0.05,0) -> 3 | F18: 214
A19: 15 | B19: =ROUND([3]ResourceLevelConfig!$E19*0.05,0) -> 6 | C19: =ROUND([3]ResourceLevelConfig!$C19*0.05,0) -> 58 | D19: =ROUND([3]ResourceLevelConfig!$G19*0.05,0) -> 3 | E19: =ROUND([3]ResourceLevelConfig!$H19*0.05,0) -> 3 | F19: 215
A20: 16 | B20: =ROUND([3]ResourceLevelConfig!$E20*0.05,0) -> 6 | C20: =ROUND([3]ResourceLevelConfig!$C20*0.05,0) -> 58 | D20: =ROUND([3]ResourceLevelConfig!$G20*0.05,0) -> 3 | E20: =ROUND([3]ResourceLevelConfig!$H20*0.05,0) -> 3 | F20: 216
A21: 17 | B21: =ROUND([3]ResourceLevelConfig!$E21*0.05,0) -> 6 | C21: =ROUND([3]ResourceLevelConfig!$C21*0.05,0) -> 59 | D21: =ROUND([3]ResourceLevelConfig!$G21*0.05,0) -> 3 | E21: =ROUND([3]ResourceLevelConfig!$H21*0.05,0) -> 3 | F21: 217
A22: 18 | B22: =ROUND([3]ResourceLevelConfig!$E22*0.05,0) -> 6 | C22: =ROUND([3]ResourceLevelConfig!$C22*0.05,0) -> 59 | D22: =ROUND([3]ResourceLevelConfig!$G22*0.05,0) -> 3 | E22: =ROUND([3]ResourceLevelConfig!$H22*0.05,0) -> 3 | F22: 218
A23: 19 | B23: =ROUND([3]ResourceLevelConfig!$E23*0.05,0) -> 6 | C23: =ROUND([3]ResourceLevelConfig!$C23*0.05,0) -> 60 | D23: =ROUND([3]ResourceLevelConfig!$G23*0.05,0) -> 3 | E23: =ROUND([3]ResourceLevelConfig!$H23*0.05,0) -> 3 | F23: 219
A24: 20 | B24: =ROUND([3]ResourceLevelConfig!$E24*0.05,0) -> 6 | C24: =ROUND([3]ResourceLevelConfig!$C24*0.05,0) -> 61 | D24: =ROUND([3]ResourceLevelConfig!$G24*0.05,0) -> 3 | E24: =ROUND([3]ResourceLevelConfig!$H24*0.05,0) -> 3 | F24: 220
A25: 21 | B25: =ROUND([3]ResourceLevelConfig!$E25*0.05,0) -> 6 | C25: =ROUND([3]ResourceLevelConfig!$C25*0.05,0) -> 61 | D25: =ROUND([3]ResourceLevelConfig!$G25*0.05,0) -> 4 | E25: =ROUND([3]ResourceLevelConfig!$H25*0.05,0) -> 4 | F25: 221
A26: 22 | B26: =ROUND([3]ResourceLevelConfig!$E26*0.05,0) -> 6 | C26: =ROUND([3]ResourceLevelConfig!$C26*0.05,0) -> 62 | D26: =ROUND([3]ResourceLevelConfig!$G26*0.05,0) -> 4 | E26: =ROUND([3]ResourceLevelConfig!$H26*0.05,0) -> 4 | F26: 222
A27: 23 | B27: =ROUND([3]ResourceLevelConfig!$E27*0.05,0) -> 6 | C27: =ROUND([3]ResourceLevelConfig!$C27*0.05,0) -> 62 | D27: =ROUND([3]ResourceLevelConfig!$G27*0.05,0) -> 4 | E27: =ROUND([3]ResourceLevelConfig!$H27*0.05,0) -> 4 | F27: 223
A28: 24 | B28: =ROUND([3]ResourceLevelConfig!$E28*0.05,0) -> 7 | C28: =ROUND([3]ResourceLevelConfig!$C28*0.05,0) -> 63 | D28: =ROUND([3]ResourceLevelConfig!$G28*0.05,0) -> 4 | E28: =ROUND([3]ResourceLevelConfig!$H28*0.05,0) -> 4 | F28: 224
A29: 25 | B29: =ROUND([3]ResourceLevelConfig!$E29*0.05,0) -> 7 | C29: =ROUND([3]ResourceLevelConfig!$C29*0.05,0) -> 64 | D29: =ROUND([3]ResourceLevelConfig!$G29*0.05,0) -> 4 | E29: =ROUND([3]ResourceLevelConfig!$H29*0.05,0) -> 4 | F29: 225
A30: 26 | B30: =ROUND([3]ResourceLevelConfig!$E30*0.05,0) -> 7 | C30: =ROUND([3]ResourceLevelConfig!$C30*0.05,0) -> 64 | D30: =ROUND([3]ResourceLevelConfig!$G30*0.05,0) -> 4 | E30: =ROUND([3]ResourceLevelConfig!$H30*0.05,0) -> 4 | F30: 226
A31: 27 | B31: =ROUND([3]ResourceLevelConfig!$E31*0.05,0) -> 7 | C31: =ROUND([3]ResourceLevelConfig!$C31*0.05,0) -> 65 | D31: =ROUND([3]ResourceLevelConfig!$G31*0.05,0) -> 4 | E31: =ROUND([3]ResourceLevelConfig!$H31*0.05,0) -> 4 | F31: 227
A32: 28 | B32: =ROUND([3]ResourceLevelConfig!$E32*0.05,0) -> 7 | C32: =ROUND([3]ResourceLevelConfig!$C32*0.05,0) -> 66 | D32: =ROUND([3]ResourceLevelConfig!$G32*0.05,0) -> 4 | E32: =ROUND([3]ResourceLevelConfig!$H32*0.05,0) -> 4 | F32: 228
A33: 29 | B33: =ROUND([3]ResourceLevelConfig!$E33*0.05,0) -> 7 | C33: =ROUND([3]ResourceLevelConfig!$C33*0.05,0) -> 66 | D33: =ROUND([3]ResourceLevelConfig!$G33*0.05,0) -> 4 | E33: =ROUND([3]ResourceLevelConfig!$H33*0.05,0) -> 4 | F33: 229
A34: 30 | B34: =ROUND([3]ResourceLevelConfig!$E34*0.05,0) -> 7 | C34: =ROUND([3]ResourceLevelConfig!$C34*0.05,0) -> 67 | D34: =ROUND([3]ResourceLevelConfig!$G34*0.05,0) -> 4 | E34: =ROUND([3]ResourceLevelConfig!$H34*0.05,0) -> 4 | F34: 230
A35: 31 | B35: =ROUND([3]ResourceLevelConfig!$E35*0.05,0) -> 7 | C35: =ROUND([3]ResourceLevelConfig!$C35*0.05,0) -> 68 | D35: =ROUND([3]ResourceLevelConfig!$G35*0.05,0) -> 4 | E35: =ROUND([3]ResourceLevelConfig!$H35*0.05,0) -> 4 | F35: 231
A36: 32 | B36: =ROUND([3]ResourceLevelConfig!$E36*0.05,0) -> 7 | C36: =ROUND([3]ResourceLevelConfig!$C36*0.05,0) -> 68 | D36: =ROUND([3]ResourceLevelConfig!$G36*0.05,0) -> 4 | E36: =ROUND([3]ResourceLevelConfig!$H36*0.05,0) -> 4 | F36: 232
A37: 33 | B37: =ROUND([3]ResourceLevelConfig!$E37*0.05,0) -> 7 | C37: =ROUND([3]ResourceLevelConfig!$C37*0.05,0) -> 69 | D37: =ROUND([3]ResourceLevelConfig!$G37*0.05,0) -> 4 | E37: =ROUND([3]ResourceLevelConfig!$H37*0.05,0) -> 4 | F37: 233
A38: 34 | B38: =ROUND([3]ResourceLevelConfig!$E38*0.05,0) -> 7 | C38: =ROUND([3]ResourceLevelConfig!$C38*0.05,0) -> 70 | D38: =ROUND([3]ResourceLevelConfig!$G38*0.05,0) -> 4 | E38: =ROUND([3]ResourceLevelConfig!$H38*0.05,0) -> 4 | F38: 234
A39: 35 | B39: =ROUND([3]ResourceLevelConfig!$E39*0.05,0) -> 7 | C39: =ROUND([3]ResourceLevelConfig!$C39*0.05,0) -> 70 | D39: =ROUND([3]ResourceLevelConfig!$G39*0.05,0) -> 4 | E39: =ROUND([3]ResourceLevelConfig!$H39*0.05,0) -> 4 | F39: 235
A40: 36 | B40: =ROUND([3]ResourceLevelConfig!$E40*0.05,0) -> 7 | C40: =ROUND([3]ResourceLevelConfig!$C40*0.05,0) -> 71 | D40: =ROUND([3]ResourceLevelConfig!$G40*0.05,0) -> 4 | E40: =ROUND([3]ResourceLevelConfig!$H40*0.05,0) -> 4 | F40: 236
A41: 37 | B41: =ROUND([3]ResourceLevelConfig!$E41*0.05,0) -> 7 | C41: =ROUND([3]ResourceLevelConfig!$C41*0.05,0) -> 72 | D41: =ROUND([3]ResourceLevelConfig!$G41*0.05,0) -> 4 | E41: =ROUND([3]ResourceLevelConfig!$H41*0.05,0) -> 4 | F41: 237
A42: 38 | B42: =ROUND([3]ResourceLevelConfig!$E42*0.05,0) -> 7 | C42: =ROUND([3]ResourceLevelConfig!$C42*0.05,0) -> 72 | D42: =ROUND([3]ResourceLevelConfig!$G42*0.05,0) -> 4 | E42: =ROUND([3]ResourceLevelConfig!$H42*0.05,0) -> 4 | F42: 238
A43: 39 | B43: =ROUND([3]ResourceLevelConfig!$E43*0.05,0) -> 8 | C43: =ROUND([3]ResourceLevelConfig!$C43*0.05,0) -> 73 | D43: =ROUND([3]ResourceLevelConfig!$G43*0.05,0) -> 4 | E43: =ROUND([3]ResourceLevelConfig!$H43*0.05,0) -> 4 | F43: 239
A44: 40 | B44: =ROUND([3]ResourceLevelConfig!$E44*0.05,0) -> 8 | C44: =ROUND([3]ResourceLevelConfig!$C44*0.05,0) -> 74 | D44: =ROUND([3]ResourceLevelConfig!$G44*0.05,0) -> 4 | E44: =ROUND([3]ResourceLevelConfig!$H44*0.05,0) -> 4 | F44: 240
A45: 41 | B45: =ROUND([3]ResourceLevelConfig!$E45*0.05,0) -> 8 | C45: =ROUND([3]ResourceLevelConfig!$C45*0.05,0) -> 75 | D45: =ROUND([3]ResourceLevelConfig!$G45*0.05,0) -> 5 | E45: =ROUND([3]ResourceLevelConfig!$H45*0.05,0) -> 5 | F45: 241
A46: 42 | B46: =ROUND([3]ResourceLevelConfig!$E46*0.05,0) -> 8 | C46: =ROUND([3]ResourceLevelConfig!$C46*0.05,0) -> 75 | D46: =ROUND([3]ResourceLevelConfig!$G46*0.05,0) -> 5 | E46: =ROUND([3]ResourceLevelConfig!$H46*0.05,0) -> 5 | F46: 242
A47: 43 | B47: =ROUND([3]ResourceLevelConfig!$E47*0.05,0) -> 8 | C47: =ROUND([3]ResourceLevelConfig!$C47*0.05,0) -> 76 | D47: =ROUND([3]ResourceLevelConfig!$G47*0.05,0) -> 5 | E47: =ROUND([3]ResourceLevelConfig!$H47*0.05,0) -> 5 | F47: 243
A48: 44 | B48: =ROUND([3]ResourceLevelConfig!$E48*0.05,0) -> 8 | C48: =ROUND([3]ResourceLevelConfig!$C48*0.05,0) -> 77 | D48: =ROUND([3]ResourceLevelConfig!$G48*0.05,0) -> 5 | E48: =ROUND([3]ResourceLevelConfig!$H48*0.05,0) -> 5 | F48: 244
A49: 45 | B49: =ROUND([3]ResourceLevelConfig!$E49*0.05,0) -> 8 | C49: =ROUND([3]ResourceLevelConfig!$C49*0.05,0) -> 78 | D49: =ROUND([3]ResourceLevelConfig!$G49*0.05,0) -> 5 | E49: =ROUND([3]ResourceLevelConfig!$H49*0.05,0) -> 5 | F49: 245
A50: 46 | B50: =ROUND([3]ResourceLevelConfig!$E50*0.05,0) -> 8 | C50: =ROUND([3]ResourceLevelConfig!$C50*0.05,0) -> 79 | D50: =ROUND([3]ResourceLevelConfig!$G50*0.05,0) -> 5 | E50: =ROUND([3]ResourceLevelConfig!$H50*0.05,0) -> 5 | F50: 246
A51: 47 | B51: =ROUND([3]ResourceLevelConfig!$E51*0.05,0) -> 8 | C51: =ROUND([3]ResourceLevelConfig!$C51*0.05,0) -> 79 | D51: =ROUND([3]ResourceLevelConfig!$G51*0.05,0) -> 5 | E51: =ROUND([3]ResourceLevelConfig!$H51*0.05,0) -> 5 | F51: 247
A52: 48 | B52: =ROUND([3]ResourceLevelConfig!$E52*0.05,0) -> 8 | C52: =ROUND([3]ResourceLevelConfig!$C52*0.05,0) -> 80 | D52: =ROUND([3]ResourceLevelConfig!$G52*0.05,0) -> 5 | E52: =ROUND([3]ResourceLevelConfig!$H52*0.05,0) -> 5 | F52: 248
A53: 49 | B53: =ROUND([3]ResourceLevelConfig!$E53*0.05,0) -> 8 | C53: =ROUND([3]ResourceLevelConfig!$C53*0.05,0) -> 81 | D53: =ROUND([3]ResourceLevelConfig!$G53*0.05,0) -> 5 | E53: =ROUND([3]ResourceLevelConfig!$H53*0.05,0) -> 5 | F53: 249
A54: 50 | B54: =ROUND([3]ResourceLevelConfig!$E54*0.05,0) -> 8 | C54: =ROUND([3]ResourceLevelConfig!$C54*0.05,0) -> 82 | D54: =ROUND([3]ResourceLevelConfig!$G54*0.05,0) -> 5 | E54: =ROUND([3]ResourceLevelConfig!$H54*0.05,0) -> 5 | F54: 250
A55: 51 | B55: =ROUND([3]ResourceLevelConfig!$E55*0.05,0) -> 9 | C55: =ROUND([3]ResourceLevelConfig!$C55*0.05,0) -> 83 | D55: =ROUND([3]ResourceLevelConfig!$G55*0.05,0) -> 5 | E55: =ROUND([3]ResourceLevelConfig!$H55*0.05,0) -> 5 | F55: 251
A56: 52 | B56: =ROUND([3]ResourceLevelConfig!$E56*0.05,0) -> 9 | C56: =ROUND([3]ResourceLevelConfig!$C56*0.05,0) -> 83 | D56: =ROUND([3]ResourceLevelConfig!$G56*0.05,0) -> 5 | E56: =ROUND([3]ResourceLevelConfig!$H56*0.05,0) -> 5 | F56: 252
A57: 53 | B57: =ROUND([3]ResourceLevelConfig!$E57*0.05,0) -> 9 | C57: =ROUND([3]ResourceLevelConfig!$C57*0.05,0) -> 84 | D57: =ROUND([3]ResourceLevelConfig!$G57*0.05,0) -> 5 | E57: =ROUND([3]ResourceLevelConfig!$H57*0.05,0) -> 5 | F57: 253
A58: 54 | B58: =ROUND([3]ResourceLevelConfig!$E58*0.05,0) -> 9 | C58: =ROUND([3]ResourceLevelConfig!$C58*0.05,0) -> 85 | D58: =ROUND([3]ResourceLevelConfig!$G58*0.05,0) -> 5 | E58: =ROUND([3]ResourceLevelConfig!$H58*0.05,0) -> 5 | F58: 254
A59: 55 | B59: =ROUND([3]ResourceLevelConfig!$E59*0.05,0) -> 9 | C59: =ROUND([3]ResourceLevelConfig!$C59*0.05,0) -> 86 | D59: =ROUND([3]ResourceLevelConfig!$G59*0.05,0) -> 5 | E59: =ROUND([3]ResourceLevelConfig!$H59*0.05,0) -> 5 | F59: 255
A60: 56 | B60: =ROUND([3]ResourceLevelConfig!$E60*0.05,0) -> 9 | C60: =ROUND([3]ResourceLevelConfig!$C60*0.05,0) -> 87 | D60: =ROUND([3]ResourceLevelConfig!$G60*0.05,0) -> 5 | E60: =ROUND([3]ResourceLevelConfig!$H60*0.05,0) -> 5 | F60: 256
A61: 57 | B61: =ROUND([3]ResourceLevelConfig!$E61*0.05,0) -> 9 | C61: =ROUND([3]ResourceLevelConfig!$C61*0.05,0) -> 88 | D61: =ROUND([3]ResourceLevelConfig!$G61*0.05,0) -> 5 | E61: =ROUND([3]ResourceLevelConfig!$H61*0.05,0) -> 5 | F61: 257
A62: 58 | B62: =ROUND([3]ResourceLevelConfig!$E62*0.05,0) -> 9 | C62: =ROUND([3]ResourceLevelConfig!$C62*0.05,0) -> 89 | D62: =ROUND([3]ResourceLevelConfig!$G62*0.05,0) -> 5 | E62: =ROUND([3]ResourceLevelConfig!$H62*0.05,0) -> 5 | F62: 258
A63: 59 | B63: =ROUND([3]ResourceLevelConfig!$E63*0.05,0) -> 9 | C63: =ROUND([3]ResourceLevelConfig!$C63*0.05,0) -> 89 | D63: =ROUND([3]ResourceLevelConfig!$G63*0.05,0) -> 5 | E63: =ROUND([3]ResourceLevelConfig!$H63*0.05,0) -> 5 | F63: 259
A64: 60 | B64: =ROUND([3]ResourceLevelConfig!$E64*0.05,0) -> 9 | C64: =ROUND([3]ResourceLevelConfig!$C64*0.05,0) -> 90 | D64: =ROUND([3]ResourceLevelConfig!$G64*0.05,0) -> 5 | E64: =ROUND([3]ResourceLevelConfig!$H64*0.05,0) -> 5 | F64: 260
A65: 61 | B65: =ROUND([3]ResourceLevelConfig!$E65*0.05,0) -> 9 | C65: =ROUND([3]ResourceLevelConfig!$C65*0.05,0) -> 91 | D65: =ROUND([3]ResourceLevelConfig!$G65*0.05,0) -> 6 | E65: =ROUND([3]ResourceLevelConfig!$H65*0.05,0) -> 6 | F65: 261
A66: 62 | B66: =ROUND([3]ResourceLevelConfig!$E66*0.05,0) -> 9 | C66: =ROUND([3]ResourceLevelConfig!$C66*0.05,0) -> 92 | D66: =ROUND([3]ResourceLevelConfig!$G66*0.05,0) -> 6 | E66: =ROUND([3]ResourceLevelConfig!$H66*0.05,0) -> 6 | F66: 262
A67: 63 | B67: =ROUND([3]ResourceLevelConfig!$E67*0.05,0) -> 10 | C67: =ROUND([3]ResourceLevelConfig!$C67*0.05,0) -> 93 | D67: =ROUND([3]ResourceLevelConfig!$G67*0.05,0) -> 6 | E67: =ROUND([3]ResourceLevelConfig!$H67*0.05,0) -> 6 | F67: 263
A68: 64 | B68: =ROUND([3]ResourceLevelConfig!$E68*0.05,0) -> 10 | C68: =ROUND([3]ResourceLevelConfig!$C68*0.05,0) -> 94 | D68: =ROUND([3]ResourceLevelConfig!$G68*0.05,0) -> 6 | E68: =ROUND([3]ResourceLevelConfig!$H68*0.05,0) -> 6 | F68: 264
A69: 65 | B69: =ROUND([3]ResourceLevelConfig!$E69*0.05,0) -> 10 | C69: =ROUND([3]ResourceLevelConfig!$C69*0.05,0) -> 95 | D69: =ROUND([3]ResourceLevelConfig!$G69*0.05,0) -> 6 | E69: =ROUND([3]ResourceLevelConfig!$H69*0.05,0) -> 6 | F69: 265
A70: 66 | B70: =ROUND([3]ResourceLevelConfig!$E70*0.05,0) -> 10 | C70: =ROUND([3]ResourceLevelConfig!$C70*0.05,0) -> 96 | D70: =ROUND([3]ResourceLevelConfig!$G70*0.05,0) -> 6 | E70: =ROUND([3]ResourceLevelConfig!$H70*0.05,0) -> 6 | F70: 266
A71: 67 | B71: =ROUND([3]ResourceLevelConfig!$E71*0.05,0) -> 10 | C71: =ROUND([3]ResourceLevelConfig!$C71*0.05,0) -> 97 | D71: =ROUND([3]ResourceLevelConfig!$G71*0.05,0) -> 6 | E71: =ROUND([3]ResourceLevelConfig!$H71*0.05,0) -> 6 | F71: 267
A72: 68 | B72: =ROUND([3]ResourceLevelConfig!$E72*0.05,0) -> 10 | C72: =ROUND([3]ResourceLevelConfig!$C72*0.05,0) -> 98 | D72: =ROUND([3]ResourceLevelConfig!$G72*0.05,0) -> 6 | E72: =ROUND([3]ResourceLevelConfig!$H72*0.05,0) -> 6 | F72: 268
A73: 69 | B73: =ROUND([3]ResourceLevelConfig!$E73*0.05,0) -> 10 | C73: =ROUND([3]ResourceLevelConfig!$C73*0.05,0) -> 99 | D73: =ROUND([3]ResourceLevelConfig!$G73*0.05,0) -> 6 | E73: =ROUND([3]ResourceLevelConfig!$H73*0.05,0) -> 6 | F73: 269
A74: 70 | B74: =ROUND([3]ResourceLevelConfig!$E74*0.05,0) -> 10 | C74: =ROUND([3]ResourceLevelConfig!$C74*0.05,0) -> 100 | D74: =ROUND([3]ResourceLevelConfig!$G74*0.05,0) -> 6 | E74: =ROUND([3]ResourceLevelConfig!$H74*0.05,0) -> 6 | F74: 270
A75: 71 | B75: =ROUND([3]ResourceLevelConfig!$E75*0.05,0) -> 10 | C75: =ROUND([3]ResourceLevelConfig!$C75*0.05,0) -> 101 | D75: =ROUND([3]ResourceLevelConfig!$G75*0.05,0) -> 6 | E75: =ROUND([3]ResourceLevelConfig!$H75*0.05,0) -> 6 | F75: 271
A76: 72 | B76: =ROUND([3]ResourceLevelConfig!$E76*0.05,0) -> 10 | C76: =ROUND([3]ResourceLevelConfig!$C76*0.05,0) -> 102 | D76: =ROUND([3]ResourceLevelConfig!$G76*0.05,0) -> 6 | E76: =ROUND([3]ResourceLevelConfig!$H76*0.05,0) -> 6 | F76: 272
A77: 73 | B77: =ROUND([3]ResourceLevelConfig!$E77*0.05,0) -> 11 | C77: =ROUND([3]ResourceLevelConfig!$C77*0.05,0) -> 103 | D77: =ROUND([3]ResourceLevelConfig!$G77*0.05,0) -> 6 | E77: =ROUND([3]ResourceLevelConfig!$H77*0.05,0) -> 6 | F77: 273
A78: 74 | B78: =ROUND([3]ResourceLevelConfig!$E78*0.05,0) -> 11 | C78: =ROUND([3]ResourceLevelConfig!$C78*0.05,0) -> 104 | D78: =ROUND([3]ResourceLevelConfig!$G78*0.05,0) -> 6 | E78: =ROUND([3]ResourceLevelConfig!$H78*0.05,0) -> 6 | F78: 274
A79: 75 | B79: =ROUND([3]ResourceLevelConfig!$E79*0.05,0) -> 11 | C79: =ROUND([3]ResourceLevelConfig!$C79*0.05,0) -> 105 | D79: =ROUND([3]ResourceLevelConfig!$G79*0.05,0) -> 6 | E79: =ROUND([3]ResourceLevelConfig!$H79*0.05,0) -> 6 | F79: 275
A80: 76 | B80: =ROUND([3]ResourceLevelConfig!$E80*0.05,0) -> 11 | C80: =ROUND([3]ResourceLevelConfig!$C80*0.05,0) -> 106 | D80: =ROUND([3]ResourceLevelConfig!$G80*0.05,0) -> 6 | E80: =ROUND([3]ResourceLevelConfig!$H80*0.05,0) -> 6 | F80: 276
A81: 77 | B81: =ROUND([3]ResourceLevelConfig!$E81*0.05,0) -> 11 | C81: =ROUND([3]ResourceLevelConfig!$C81*0.05,0) -> 107 | D81: =ROUND([3]ResourceLevelConfig!$G81*0.05,0) -> 6 | E81: =ROUND([3]ResourceLevelConfig!$H81*0.05,0) -> 6 | F81: 277
A82: 78 | B82: =ROUND([3]ResourceLevelConfig!$E82*0.05,0) -> 11 | C82: =ROUND([3]ResourceLevelConfig!$C82*0.05,0) -> 108 | D82: =ROUND([3]ResourceLevelConfig!$G82*0.05,0) -> 6 | E82: =ROUND([3]ResourceLevelConfig!$H82*0.05,0) -> 6 | F82: 278
A83: 79 | B83: =ROUND([3]ResourceLevelConfig!$E83*0.05,0) -> 11 | C83: =ROUND([3]ResourceLevelConfig!$C83*0.05,0) -> 109 | D83: =ROUND([3]ResourceLevelConfig!$G83*0.05,0) -> 6 | E83: =ROUND([3]ResourceLevelConfig!$H83*0.05,0) -> 6 | F83: 279
A84: 80 | B84: =ROUND([3]ResourceLevelConfig!$E84*0.05,0) -> 11 | C84: =ROUND([3]ResourceLevelConfig!$C84*0.05,0) -> 110 | D84: =ROUND([3]ResourceLevelConfig!$G84*0.05,0) -> 6 | E84: =ROUND([3]ResourceLevelConfig!$H84*0.05,0) -> 6 | F84: 280
A85: 81 | B85: =ROUND([3]ResourceLevelConfig!$E85*0.05,0) -> 11 | C85: =ROUND([3]ResourceLevelConfig!$C85*0.05,0) -> 111 | D85: =ROUND([3]ResourceLevelConfig!$G85*0.05,0) -> 7 | E85: =ROUND([3]ResourceLevelConfig!$H85*0.05,0) -> 7 | F85: 281
A86: 82 | B86: =ROUND([3]ResourceLevelConfig!$E86*0.05,0) -> 12 | C86: =ROUND([3]ResourceLevelConfig!$C86*0.05,0) -> 113 | D86: =ROUND([3]ResourceLevelConfig!$G86*0.05,0) -> 7 | E86: =ROUND([3]ResourceLevelConfig!$H86*0.05,0) -> 7 | F86: 282
A87: 83 | B87: =ROUND([3]ResourceLevelConfig!$E87*0.05,0) -> 12 | C87: =ROUND([3]ResourceLevelConfig!$C87*0.05,0) -> 114 | D87: =ROUND([3]ResourceLevelConfig!$G87*0.05,0) -> 7 | E87: =ROUND([3]ResourceLevelConfig!$H87*0.05,0) -> 7 | F87: 283
A88: 84 | B88: =ROUND([3]ResourceLevelConfig!$E88*0.05,0) -> 12 | C88: =ROUND([3]ResourceLevelConfig!$C88*0.05,0) -> 115 | D88: =ROUND([3]ResourceLevelConfig!$G88*0.05,0) -> 7 | E88: =ROUND([3]ResourceLevelConfig!$H88*0.05,0) -> 7 | F88: 284
A89: 85 | B89: =ROUND([3]ResourceLevelConfig!$E89*0.05,0) -> 12 | C89: =ROUND([3]ResourceLevelConfig!$C89*0.05,0) -> 116 | D89: =ROUND([3]ResourceLevelConfig!$G89*0.05,0) -> 7 | E89: =ROUND([3]ResourceLevelConfig!$H89*0.05,0) -> 7 | F89: 285
A90: 86 | B90: =ROUND([3]ResourceLevelConfig!$E90*0.05,0) -> 12 | C90: =ROUND([3]ResourceLevelConfig!$C90*0.05,0) -> 117 | D90: =ROUND([3]ResourceLevelConfig!$G90*0.05,0) -> 7 | E90: =ROUND([3]ResourceLevelConfig!$H90*0.05,0) -> 7 | F90: 286
A91: 87 | B91: =ROUND([3]ResourceLevelConfig!$E91*0.05,0) -> 12 | C91: =ROUND([3]ResourceLevelConfig!$C91*0.05,0) -> 118 | D91: =ROUND([3]ResourceLevelConfig!$G91*0.05,0) -> 7 | E91: =ROUND([3]ResourceLevelConfig!$H91*0.05,0) -> 7 | F91: 287
A92: 88 | B92: =ROUND([3]ResourceLevelConfig!$E92*0.05,0) -> 12 | C92: =ROUND([3]ResourceLevelConfig!$C92*0.05,0) -> 120 | D92: =ROUND([3]ResourceLevelConfig!$G92*0.05,0) -> 7 | E92: =ROUND([3]ResourceLevelConfig!$H92*0.05,0) -> 7 | F92: 288
A93: 89 | B93: =ROUND([3]ResourceLevelConfig!$E93*0.05,0) -> 12 | C93: =ROUND([3]ResourceLevelConfig!$C93*0.05,0) -> 121 | D93: =ROUND([3]ResourceLevelConfig!$G93*0.05,0) -> 7 | E93: =ROUND([3]ResourceLevelConfig!$H93*0.05,0) -> 7 | F93: 289
A94: 90 | B94: =ROUND([3]ResourceLevelConfig!$E94*0.05,0) -> 12 | C94: =ROUND([3]ResourceLevelConfig!$C94*0.05,0) -> 122 | D94: =ROUND([3]ResourceLevelConfig!$G94*0.05,0) -> 7 | E94: =ROUND([3]ResourceLevelConfig!$H94*0.05,0) -> 7 | F94: 290
A95: 91 | B95: =ROUND([3]ResourceLevelConfig!$E95*0.05,0) -> 13 | C95: =ROUND([3]ResourceLevelConfig!$C95*0.05,0) -> 123 | D95: =ROUND([3]ResourceLevelConfig!$G95*0.05,0) -> 7 | E95: =ROUND([3]ResourceLevelConfig!$H95*0.05,0) -> 7 | F95: 291
A96: 92 | B96: =ROUND([3]ResourceLevelConfig!$E96*0.05,0) -> 13 | C96: =ROUND([3]ResourceLevelConfig!$C96*0.05,0) -> 124 | D96: =ROUND([3]ResourceLevelConfig!$G96*0.05,0) -> 7 | E96: =ROUND([3]ResourceLevelConfig!$H96*0.05,0) -> 7 | F96: 292
A97: 93 | B97: =ROUND([3]ResourceLevelConfig!$E97*0.05,0) -> 13 | C97: =ROUND([3]ResourceLevelConfig!$C97*0.05,0) -> 126 | D97: =ROUND([3]ResourceLevelConfig!$G97*0.05,0) -> 7 | E97: =ROUND([3]ResourceLevelConfig!$H97*0.05,0) -> 7 | F97: 293
A98: 94 | B98: =ROUND([3]ResourceLevelConfig!$E98*0.05,0) -> 13 | C98: =ROUND([3]ResourceLevelConfig!$C98*0.05,0) -> 127 | D98: =ROUND([3]ResourceLevelConfig!$G98*0.05,0) -> 7 | E98: =ROUND([3]ResourceLevelConfig!$H98*0.05,0) -> 7 | F98: 294
A99: 95 | B99: =ROUND([3]ResourceLevelConfig!$E99*0.05,0) -> 13 | C99: =ROUND([3]ResourceLevelConfig!$C99*0.05,0) -> 128 | D99: =ROUND([3]ResourceLevelConfig!$G99*0.05,0) -> 7 | E99: =ROUND([3]ResourceLevelConfig!$H99*0.05,0) -> 7 | F99: 295
A100: 96 | B100: =ROUND([3]ResourceLevelConfig!$E100*0.05,0) -> 13 | C100: =ROUND([3]ResourceLevelConfig!$C100*0.05,0) -> 130 | D100: =ROUND([3]ResourceLevelConfig!$G100*0.05,0) -> 7 | E100: =ROUND([3]ResourceLevelConfig!$H100*0.05,0) -> 7 | F100: 296
A101: 97 | B101: =ROUND([3]ResourceLevelConfig!$E101*0.05,0) -> 13 | C101: =ROUND([3]ResourceLevelConfig!$C101*0.05,0) -> 131 | D101: =ROUND([3]ResourceLevelConfig!$G101*0.05,0) -> 7 | E101: =ROUND([3]ResourceLevelConfig!$H101*0.05,0) -> 7 | F101: 297
A102: 98 | B102: =ROUND([3]ResourceLevelConfig!$E102*0.05,0) -> 13 | C102: =ROUND([3]ResourceLevelConfig!$C102*0.05,0) -> 132 | D102: =ROUND([3]ResourceLevelConfig!$G102*0.05,0) -> 7 | E102: =ROUND([3]ResourceLevelConfig!$H102*0.05,0) -> 7 | F102: 298
A103: 99 | B103: =ROUND([3]ResourceLevelConfig!$E103*0.05,0) -> 14 | C103: =ROUND([3]ResourceLevelConfig!$C103*0.05,0) -> 133 | D103: =ROUND([3]ResourceLevelConfig!$G103*0.05,0) -> 7 | E103: =ROUND([3]ResourceLevelConfig!$H103*0.05,0) -> 7 | F103: 299
A104: 100 | B104: =ROUND([3]ResourceLevelConfig!$E104*0.05,0) -> 14 | C104: =ROUND([3]ResourceLevelConfig!$C104*0.05,0) -> 135 | D104: =ROUND([3]ResourceLevelConfig!$G104*0.05,0) -> 7 | E104: =ROUND([3]ResourceLevelConfig!$H104*0.05,0) -> 7 | F104: 300
A105: 101 | B105: =ROUND([3]ResourceLevelConfig!$E105*0.05,0) -> 14 | C105: =ROUND([3]ResourceLevelConfig!$C105*0.05,0) -> 136 | D105: =ROUND([3]ResourceLevelConfig!$G105*0.05,0) -> 8 | E105: =ROUND([3]ResourceLevelConfig!$H105*0.05,0) -> 8 | F105: 301
A106: 102 | B106: =ROUND([3]ResourceLevelConfig!$E106*0.05,0) -> 14 | C106: =ROUND([3]ResourceLevelConfig!$C106*0.05,0) -> 138 | D106: =ROUND([3]ResourceLevelConfig!$G106*0.05,0) -> 8 | E106: =ROUND([3]ResourceLevelConfig!$H106*0.05,0) -> 8 | F106: 302
A107: 103 | B107: =ROUND([3]ResourceLevelConfig!$E107*0.05,0) -> 14 | C107: =ROUND([3]ResourceLevelConfig!$C107*0.05,0) -> 139 | D107: =ROUND([3]ResourceLevelConfig!$G107*0.05,0) -> 8 | E107: =ROUND([3]ResourceLevelConfig!$H107*0.05,0) -> 8 | F107: 303
A108: 104 | B108: =ROUND([3]ResourceLevelConfig!$E108*0.05,0) -> 14 | C108: =ROUND([3]ResourceLevelConfig!$C108*0.05,0) -> 140 | D108: =ROUND([3]ResourceLevelConfig!$G108*0.05,0) -> 8 | E108: =ROUND([3]ResourceLevelConfig!$H108*0.05,0) -> 8 | F108: 304
A109: 105 | B109: =ROUND([3]ResourceLevelConfig!$E109*0.05,0) -> 14 | C109: =ROUND([3]ResourceLevelConfig!$C109*0.05,0) -> 142 | D109: =ROUND([3]ResourceLevelConfig!$G109*0.05,0) -> 8 | E109: =ROUND([3]ResourceLevelConfig!$H109*0.05,0) -> 8 | F109: 305
A110: 106 | B110: =ROUND([3]ResourceLevelConfig!$E110*0.05,0) -> 15 | C110: =ROUND([3]ResourceLevelConfig!$C110*0.05,0) -> 143 | D110: =ROUND([3]ResourceLevelConfig!$G110*0.05,0) -> 8 | E110: =ROUND([3]ResourceLevelConfig!$H110*0.05,0) -> 8 | F110: 306
A111: 107 | B111: =ROUND([3]ResourceLevelConfig!$E111*0.05,0) -> 15 | C111: =ROUND([3]ResourceLevelConfig!$C111*0.05,0) -> 145 | D111: =ROUND([3]ResourceLevelConfig!$G111*0.05,0) -> 8 | E111: =ROUND([3]ResourceLevelConfig!$H111*0.05,0) -> 8 | F111: 307
A112: 108 | B112: =ROUND([3]ResourceLevelConfig!$E112*0.05,0) -> 15 | C112: =ROUND([3]ResourceLevelConfig!$C112*0.05,0) -> 146 | D112: =ROUND([3]ResourceLevelConfig!$G112*0.05,0) -> 8 | E112: =ROUND([3]ResourceLevelConfig!$H112*0.05,0) -> 8 | F112: 308
A113: 109 | B113: =ROUND([3]ResourceLevelConfig!$E113*0.05,0) -> 15 | C113: =ROUND([3]ResourceLevelConfig!$C113*0.05,0) -> 148 | D113: =ROUND([3]ResourceLevelConfig!$G113*0.05,0) -> 8 | E113: =ROUND([3]ResourceLevelConfig!$H113*0.05,0) -> 8 | F113: 309
A114: 110 | B114: =ROUND([3]ResourceLevelConfig!$E114*0.05,0) -> 15 | C114: =ROUND([3]ResourceLevelConfig!$C114*0.05,0) -> 149 | D114: =ROUND([3]ResourceLevelConfig!$G114*0.05,0) -> 8 | E114: =ROUND([3]ResourceLevelConfig!$H114*0.05,0) -> 8 | F114: 310
A115: 111 | B115: =ROUND([3]ResourceLevelConfig!$E115*0.05,0) -> 15 | C115: =ROUND([3]ResourceLevelConfig!$C115*0.05,0) -> 151 | D115: =ROUND([3]ResourceLevelConfig!$G115*0.05,0) -> 8 | E115: =ROUND([3]ResourceLevelConfig!$H115*0.05,0) -> 8 | F115: 311
A116: 112 | B116: =ROUND([3]ResourceLevelConfig!$E116*0.05,0) -> 15 | C116: =ROUND([3]ResourceLevelConfig!$C116*0.05,0) -> 152 | D116: =ROUND([3]ResourceLevelConfig!$G116*0.05,0) -> 8 | E116: =ROUND([3]ResourceLevelConfig!$H116*0.05,0) -> 8 | F116: 312
A117: 113 | B117: =ROUND([3]ResourceLevelConfig!$E117*0.05,0) -> 16 | C117: =ROUND([3]ResourceLevelConfig!$C117*0.05,0) -> 154 | D117: =ROUND([3]ResourceLevelConfig!$G117*0.05,0) -> 8 | E117: =ROUND([3]ResourceLevelConfig!$H117*0.05,0) -> 8 | F117: 313
A118: 114 | B118: =ROUND([3]ResourceLevelConfig!$E118*0.05,0) -> 16 | C118: =ROUND([3]ResourceLevelConfig!$C118*0.05,0) -> 155 | D118: =ROUND([3]ResourceLevelConfig!$G118*0.05,0) -> 8 | E118: =ROUND([3]ResourceLevelConfig!$H118*0.05,0) -> 8 | F118: 314
A119: 115 | B119: =ROUND([3]ResourceLevelConfig!$E119*0.05,0) -> 16 | C119: =ROUND([3]ResourceLevelConfig!$C119*0.05,0) -> 157 | D119: =ROUND([3]ResourceLevelConfig!$G119*0.05,0) -> 8 | E119: =ROUND([3]ResourceLevelConfig!$H119*0.05,0) -> 8 | F119: 315
A120: 116 | B120: =ROUND([3]ResourceLevelConfig!$E120*0.05,0) -> 16 | C120: =ROUND([3]ResourceLevelConfig!$C120*0.05,0) -> 158 | D120: =ROUND([3]ResourceLevelConfig!$G120*0.05,0) -> 8 | E120: =ROUND([3]ResourceLevelConfig!$H120*0.05,0) -> 8 | F120: 316
A121: 117 | B121: =ROUND([3]ResourceLevelConfig!$E121*0.05,0) -> 16 | C121: =ROUND([3]ResourceLevelConfig!$C121*0.05,0) -> 160 | D121: =ROUND([3]ResourceLevelConfig!$G121*0.05,0) -> 8 | E121: =ROUND([3]ResourceLevelConfig!$H121*0.05,0) -> 8 | F121: 317
A122: 118 | B122: =ROUND([3]ResourceLevelConfig!$E122*0.05,0) -> 16 | C122: =ROUND([3]ResourceLevelConfig!$C122*0.05,0) -> 161 | D122: =ROUND([3]ResourceLevelConfig!$G122*0.05,0) -> 8 | E122: =ROUND([3]ResourceLevelConfig!$H122*0.05,0) -> 8 | F122: 318
A123: 119 | B123: =ROUND([3]ResourceLevelConfig!$E123*0.05,0) -> 17 | C123: =ROUND([3]ResourceLevelConfig!$C123*0.05,0) -> 163 | D123: =ROUND([3]ResourceLevelConfig!$G123*0.05,0) -> 8 | E123: =ROUND([3]ResourceLevelConfig!$H123*0.05,0) -> 8 | F123: 319
A124: 120 | B124: =ROUND([3]ResourceLevelConfig!$E124*0.05,0) -> 17 | C124: =ROUND([3]ResourceLevelConfig!$C124*0.05,0) -> 165 | D124: =ROUND([3]ResourceLevelConfig!$G124*0.05,0) -> 8 | E124: =ROUND([3]ResourceLevelConfig!$H124*0.05,0) -> 8 | F124: 320
A125: 121 | B125: =ROUND([3]ResourceLevelConfig!$E125*0.05,0) -> 17 | C125: =ROUND([3]ResourceLevelConfig!$C125*0.05,0) -> 166 | D125: =ROUND([3]ResourceLevelConfig!$G125*0.05,0) -> 9 | E125: =ROUND([3]ResourceLevelConfig!$H125*0.05,0) -> 9 | F125: 321
A126: 122 | B126: =ROUND([3]ResourceLevelConfig!$E126*0.05,0) -> 17 | C126: =ROUND([3]ResourceLevelConfig!$C126*0.05,0) -> 168 | D126: =ROUND([3]ResourceLevelConfig!$G126*0.05,0) -> 9 | E126: =ROUND([3]ResourceLevelConfig!$H126*0.05,0) -> 9 | F126: 322
A127: 123 | B127: =ROUND([3]ResourceLevelConfig!$E127*0.05,0) -> 17 | C127: =ROUND([3]ResourceLevelConfig!$C127*0.05,0) -> 170 | D127: =ROUND([3]ResourceLevelConfig!$G127*0.05,0) -> 9 | E127: =ROUND([3]ResourceLevelConfig!$H127*0.05,0) -> 9 | F127: 323
A128: 124 | B128: =ROUND([3]ResourceLevelConfig!$E128*0.05,0) -> 17 | C128: =ROUND([3]ResourceLevelConfig!$C128*0.05,0) -> 171 | D128: =ROUND([3]ResourceLevelConfig!$G128*0.05,0) -> 9 | E128: =ROUND([3]ResourceLevelConfig!$H128*0.05,0) -> 9 | F128: 324
A129: 125 | B129: =ROUND([3]ResourceLevelConfig!$E129*0.05,0) -> 18 | C129: =ROUND([3]ResourceLevelConfig!$C129*0.05,0) -> 173 | D129: =ROUND([3]ResourceLevelConfig!$G129*0.05,0) -> 9 | E129: =ROUND([3]ResourceLevelConfig!$H129*0.05,0) -> 9 | F129: 325
A130: 126 | B130: =ROUND([3]ResourceLevelConfig!$E130*0.05,0) -> 18 | C130: =ROUND([3]ResourceLevelConfig!$C130*0.05,0) -> 175 | D130: =ROUND([3]ResourceLevelConfig!$G130*0.05,0) -> 9 | E130: =ROUND([3]ResourceLevelConfig!$H130*0.05,0) -> 9 | F130: 326
A131: 127 | B131: =ROUND([3]ResourceLevelConfig!$E131*0.05,0) -> 18 | C131: =ROUND([3]ResourceLevelConfig!$C131*0.05,0) -> 177 | D131: =ROUND([3]ResourceLevelConfig!$G131*0.05,0) -> 9 | E131: =ROUND([3]ResourceLevelConfig!$H131*0.05,0) -> 9 | F131: 327
A132: 128 | B132: =ROUND([3]ResourceLevelConfig!$E132*0.05,0) -> 18 | C132: =ROUND([3]ResourceLevelConfig!$C132*0.05,0) -> 179 | D132: =ROUND([3]ResourceLevelConfig!$G132*0.05,0) -> 9 | E132: =ROUND([3]ResourceLevelConfig!$H132*0.05,0) -> 9 | F132: 328
A133: 129 | B133: =ROUND([3]ResourceLevelConfig!$E133*0.05,0) -> 18 | C133: =ROUND([3]ResourceLevelConfig!$C133*0.05,0) -> 180 | D133: =ROUND([3]ResourceLevelConfig!$G133*0.05,0) -> 9 | E133: =ROUND([3]ResourceLevelConfig!$H133*0.05,0) -> 9 | F133: 329
A134: 130 | B134: =ROUND([3]ResourceLevelConfig!$E134*0.05,0) -> 18 | C134: =ROUND([3]ResourceLevelConfig!$C134*0.05,0) -> 182 | D134: =ROUND([3]ResourceLevelConfig!$G134*0.05,0) -> 9 | E134: =ROUND([3]ResourceLevelConfig!$H134*0.05,0) -> 9 | F134: 330
A135: 131 | B135: =ROUND([3]ResourceLevelConfig!$E135*0.05,0) -> 19 | C135: =ROUND([3]ResourceLevelConfig!$C135*0.05,0) -> 184 | D135: =ROUND([3]ResourceLevelConfig!$G135*0.05,0) -> 9 | E135: =ROUND([3]ResourceLevelConfig!$H135*0.05,0) -> 9 | F135: 331
A136: 132 | B136: =ROUND([3]ResourceLevelConfig!$E136*0.05,0) -> 19 | C136: =ROUND([3]ResourceLevelConfig!$C136*0.05,0) -> 186 | D136: =ROUND([3]ResourceLevelConfig!$G136*0.05,0) -> 10 | E136: =ROUND([3]ResourceLevelConfig!$H136*0.05,0) -> 10 | F136: 332
A137: 133 | B137: =ROUND([3]ResourceLevelConfig!$E137*0.05,0) -> 19 | C137: =ROUND([3]ResourceLevelConfig!$C137*0.05,0) -> 188 | D137: =ROUND([3]ResourceLevelConfig!$G137*0.05,0) -> 10 | E137: =ROUND([3]ResourceLevelConfig!$H137*0.05,0) -> 10 | F137: 333
A138: 134 | B138: =ROUND([3]ResourceLevelConfig!$E138*0.05,0) -> 19 | C138: =ROUND([3]ResourceLevelConfig!$C138*0.05,0) -> 190 | D138: =ROUND([3]ResourceLevelConfig!$G138*0.05,0) -> 10 | E138: =ROUND([3]ResourceLevelConfig!$H138*0.05,0) -> 10 | F138: 334
A139: 135 | B139: =ROUND([3]ResourceLevelConfig!$E139*0.05,0) -> 19 | C139: =ROUND([3]ResourceLevelConfig!$C139*0.05,0) -> 191 | D139: =ROUND([3]ResourceLevelConfig!$G139*0.05,0) -> 10 | E139: =ROUND([3]ResourceLevelConfig!$H139*0.05,0) -> 10 | F139: 335
A140: 136 | B140: =ROUND([3]ResourceLevelConfig!$E140*0.05,0) -> 20 | C140: =ROUND([3]ResourceLevelConfig!$C140*0.05,0) -> 193 | D140: =ROUND([3]ResourceLevelConfig!$G140*0.05,0) -> 10 | E140: =ROUND([3]ResourceLevelConfig!$H140*0.05,0) -> 10 | F140: 336
A141: 137 | B141: =ROUND([3]ResourceLevelConfig!$E141*0.05,0) -> 20 | C141: =ROUND([3]ResourceLevelConfig!$C141*0.05,0) -> 195 | D141: =ROUND([3]ResourceLevelConfig!$G141*0.05,0) -> 10 | E141: =ROUND([3]ResourceLevelConfig!$H141*0.05,0) -> 10 | F141: 337
A142: 138 | B142: =ROUND([3]ResourceLevelConfig!$E142*0.05,0) -> 20 | C142: =ROUND([3]ResourceLevelConfig!$C142*0.05,0) -> 197 | D142: =ROUND([3]ResourceLevelConfig!$G142*0.05,0) -> 10 | E142: =ROUND([3]ResourceLevelConfig!$H142*0.05,0) -> 10 | F142: 338
A143: 139 | B143: =ROUND([3]ResourceLevelConfig!$E143*0.05,0) -> 20 | C143: =ROUND([3]ResourceLevelConfig!$C143*0.05,0) -> 199 | D143: =ROUND([3]ResourceLevelConfig!$G143*0.05,0) -> 10 | E143: =ROUND([3]ResourceLevelConfig!$H143*0.05,0) -> 10 | F143: 339
A144: 140 | B144: =ROUND([3]ResourceLevelConfig!$E144*0.05,0) -> 20 | C144: =ROUND([3]ResourceLevelConfig!$C144*0.05,0) -> 201 | D144: =ROUND([3]ResourceLevelConfig!$G144*0.05,0) -> 10 | E144: =ROUND([3]ResourceLevelConfig!$H144*0.05,0) -> 10 | F144: 340
A145: 141 | B145: =ROUND([3]ResourceLevelConfig!$E145*0.05,0) -> 21 | C145: =ROUND([3]ResourceLevelConfig!$C145*0.05,0) -> 203 | D145: =ROUND([3]ResourceLevelConfig!$G145*0.05,0) -> 10 | E145: =ROUND([3]ResourceLevelConfig!$H145*0.05,0) -> 10 | F145: 341
A146: 142 | B146: =ROUND([3]ResourceLevelConfig!$E146*0.05,0) -> 21 | C146: =ROUND([3]ResourceLevelConfig!$C146*0.05,0) -> 205 | D146: =ROUND([3]ResourceLevelConfig!$G146*0.05,0) -> 11 | E146: =ROUND([3]ResourceLevelConfig!$H146*0.05,0) -> 11 | F146: 342
A147: 143 | B147: =ROUND([3]ResourceLevelConfig!$E147*0.05,0) -> 21 | C147: =ROUND([3]ResourceLevelConfig!$C147*0.05,0) -> 207 | D147: =ROUND([3]ResourceLevelConfig!$G147*0.05,0) -> 11 | E147: =ROUND([3]ResourceLevelConfig!$H147*0.05,0) -> 11 | F147: 343
A148: 144 | B148: =ROUND([3]ResourceLevelConfig!$E148*0.05,0) -> 21 | C148: =ROUND([3]ResourceLevelConfig!$C148*0.05,0) -> 210 | D148: =ROUND([3]ResourceLevelConfig!$G148*0.05,0) -> 11 | E148: =ROUND([3]ResourceLevelConfig!$H148*0.05,0) -> 11 | F148: 344
A149: 145 | B149: =ROUND([3]ResourceLevelConfig!$E149*0.05,0) -> 21 | C149: =ROUND([3]ResourceLevelConfig!$C149*0.05,0) -> 212 | D149: =ROUND([3]ResourceLevelConfig!$G149*0.05,0) -> 11 | E149: =ROUND([3]ResourceLevelConfig!$H149*0.05,0) -> 11 | F149: 345
A150: 146 | B150: =ROUND([3]ResourceLevelConfig!$E150*0.05,0) -> 22 | C150: =ROUND([3]ResourceLevelConfig!$C150*0.05,0) -> 214 | D150: =ROUND([3]ResourceLevelConfig!$G150*0.05,0) -> 11 | E150: =ROUND([3]ResourceLevelConfig!$H150*0.05,0) -> 11 | F150: 346
A151: 147 | B151: =ROUND([3]ResourceLevelConfig!$E151*0.05,0) -> 22 | C151: =ROUND([3]ResourceLevelConfig!$C151*0.05,0) -> 216 | D151: =ROUND([3]ResourceLevelConfig!$G151*0.05,0) -> 11 | E151: =ROUND([3]ResourceLevelConfig!$H151*0.05,0) -> 11 | F151: 347
A152: 148 | B152: =ROUND([3]ResourceLevelConfig!$E152*0.05,0) -> 22 | C152: =ROUND([3]ResourceLevelConfig!$C152*0.05,0) -> 218 | D152: =ROUND([3]ResourceLevelConfig!$G152*0.05,0) -> 11 | E152: =ROUND([3]ResourceLevelConfig!$H152*0.05,0) -> 11 | F152: 348
A153: 149 | B153: =ROUND([3]ResourceLevelConfig!$E153*0.05,0) -> 22 | C153: =ROUND([3]ResourceLevelConfig!$C153*0.05,0) -> 220 | D153: =ROUND([3]ResourceLevelConfig!$G153*0.05,0) -> 11 | E153: =ROUND([3]ResourceLevelConfig!$H153*0.05,0) -> 11 | F153: 349
A154: 150 | B154: =ROUND([3]ResourceLevelConfig!$E154*0.05,0) -> 22 | C154: =ROUND([3]ResourceLevelConfig!$C154*0.05,0) -> 223 | D154: =ROUND([3]ResourceLevelConfig!$G154*0.05,0) -> 11 | E154: =ROUND([3]ResourceLevelConfig!$H154*0.05,0) -> 11 | F154: 350
A155: 151 | B155: =ROUND([3]ResourceLevelConfig!$E155*0.05,0) -> 23 | C155: =ROUND([3]ResourceLevelConfig!$C155*0.05,0) -> 225 | D155: =ROUND([3]ResourceLevelConfig!$G155*0.05,0) -> 11 | E155: =ROUND([3]ResourceLevelConfig!$H155*0.05,0) -> 11 | F155: 351
A156: 152 | B156: =ROUND([3]ResourceLevelConfig!$E156*0.05,0) -> 23 | C156: =ROUND([3]ResourceLevelConfig!$C156*0.05,0) -> 227 | D156: =ROUND([3]ResourceLevelConfig!$G156*0.05,0) -> 12 | E156: =ROUND([3]ResourceLevelConfig!$H156*0.05,0) -> 12 | F156: 352
A157: 153 | B157: =ROUND([3]ResourceLevelConfig!$E157*0.05,0) -> 23 | C157: =ROUND([3]ResourceLevelConfig!$C157*0.05,0) -> 229 | D157: =ROUND([3]ResourceLevelConfig!$G157*0.05,0) -> 12 | E157: =ROUND([3]ResourceLevelConfig!$H157*0.05,0) -> 12 | F157: 353
A158: 154 | B158: =ROUND([3]ResourceLevelConfig!$E158*0.05,0) -> 23 | C158: =ROUND([3]ResourceLevelConfig!$C158*0.05,0) -> 232 | D158: =ROUND([3]ResourceLevelConfig!$G158*0.05,0) -> 12 | E158: =ROUND([3]ResourceLevelConfig!$H158*0.05,0) -> 12 | F158: 354
A159: 155 | B159: =ROUND([3]ResourceLevelConfig!$E159*0.05,0) -> 24 | C159: =ROUND([3]ResourceLevelConfig!$C159*0.05,0) -> 234 | D159: =ROUND([3]ResourceLevelConfig!$G159*0.05,0) -> 12 | E159: =ROUND([3]ResourceLevelConfig!$H159*0.05,0) -> 12 | F159: 355
A160: 156 | B160: =ROUND([3]ResourceLevelConfig!$E160*0.05,0) -> 24 | C160: =ROUND([3]ResourceLevelConfig!$C160*0.05,0) -> 236 | D160: =ROUND([3]ResourceLevelConfig!$G160*0.05,0) -> 12 | E160: =ROUND([3]ResourceLevelConfig!$H160*0.05,0) -> 12 | F160: 356
A161: 157 | B161: =ROUND([3]ResourceLevelConfig!$E161*0.05,0) -> 24 | C161: =ROUND([3]ResourceLevelConfig!$C161*0.05,0) -> 239 | D161: =ROUND([3]ResourceLevelConfig!$G161*0.05,0) -> 12 | E161: =ROUND([3]ResourceLevelConfig!$H161*0.05,0) -> 12 | F161: 357
A162: 158 | B162: =ROUND([3]ResourceLevelConfig!$E162*0.05,0) -> 24 | C162: =ROUND([3]ResourceLevelConfig!$C162*0.05,0) -> 241 | D162: =ROUND([3]ResourceLevelConfig!$G162*0.05,0) -> 12 | E162: =ROUND([3]ResourceLevelConfig!$H162*0.05,0) -> 12 | F162: 358
A163: 159 | B163: =ROUND([3]ResourceLevelConfig!$E163*0.05,0) -> 25 | C163: =ROUND([3]ResourceLevelConfig!$C163*0.05,0) -> 244 | D163: =ROUND([3]ResourceLevelConfig!$G163*0.05,0) -> 12 | E163: =ROUND([3]ResourceLevelConfig!$H163*0.05,0) -> 12 | F163: 359
A164: 160 | B164: =ROUND([3]ResourceLevelConfig!$E164*0.05,0) -> 25 | C164: =ROUND([3]ResourceLevelConfig!$C164*0.05,0) -> 246 | D164: =ROUND([3]ResourceLevelConfig!$G164*0.05,0) -> 12 | E164: =ROUND([3]ResourceLevelConfig!$H164*0.05,0) -> 12 | F164: 360
A165: 161 | B165: =ROUND([3]ResourceLevelConfig!$E165*0.05,0) -> 25 | C165: =ROUND([3]ResourceLevelConfig!$C165*0.05,0) -> 248 | D165: =ROUND([3]ResourceLevelConfig!$G165*0.05,0) -> 12 | E165: =ROUND([3]ResourceLevelConfig!$H165*0.05,0) -> 12 | F165: 361
A166: 162 | B166: =ROUND([3]ResourceLevelConfig!$E166*0.05,0) -> 25 | C166: =ROUND([3]ResourceLevelConfig!$C166*0.05,0) -> 251 | D166: =ROUND([3]ResourceLevelConfig!$G166*0.05,0) -> 13 | E166: =ROUND([3]ResourceLevelConfig!$H166*0.05,0) -> 13 | F166: 362
A167: 163 | B167: =ROUND([3]ResourceLevelConfig!$E167*0.05,0) -> 26 | C167: =ROUND([3]ResourceLevelConfig!$C167*0.05,0) -> 253 | D167: =ROUND([3]ResourceLevelConfig!$G167*0.05,0) -> 13 | E167: =ROUND([3]ResourceLevelConfig!$H167*0.05,0) -> 13 | F167: 363
A168: 164 | B168: =ROUND([3]ResourceLevelConfig!$E168*0.05,0) -> 26 | C168: =ROUND([3]ResourceLevelConfig!$C168*0.05,0) -> 256 | D168: =ROUND([3]ResourceLevelConfig!$G168*0.05,0) -> 13 | E168: =ROUND([3]ResourceLevelConfig!$H168*0.05,0) -> 13 | F168: 364
A169: 165 | B169: =ROUND([3]ResourceLevelConfig!$E169*0.05,0) -> 26 | C169: =ROUND([3]ResourceLevelConfig!$C169*0.05,0) -> 259 | D169: =ROUND([3]ResourceLevelConfig!$G169*0.05,0) -> 13 | E169: =ROUND([3]ResourceLevelConfig!$H169*0.05,0) -> 13 | F169: 365
A170: 166 | B170: =ROUND([3]ResourceLevelConfig!$E170*0.05,0) -> 26 | C170: =ROUND([3]ResourceLevelConfig!$C170*0.05,0) -> 261 | D170: =ROUND([3]ResourceLevelConfig!$G170*0.05,0) -> 13 | E170: =ROUND([3]ResourceLevelConfig!$H170*0.05,0) -> 13 | F170: 366
A171: 167 | B171: =ROUND([3]ResourceLevelConfig!$E171*0.05,0) -> 27 | C171: =ROUND([3]ResourceLevelConfig!$C171*0.05,0) -> 264 | D171: =ROUND([3]ResourceLevelConfig!$G171*0.05,0) -> 13 | E171: =ROUND([3]ResourceLevelConfig!$H171*0.05,0) -> 13 | F171: 367
A172: 168 | B172: =ROUND([3]ResourceLevelConfig!$E172*0.05,0) -> 27 | C172: =ROUND([3]ResourceLevelConfig!$C172*0.05,0) -> 266 | D172: =ROUND([3]ResourceLevelConfig!$G172*0.05,0) -> 13 | E172: =ROUND([3]ResourceLevelConfig!$H172*0.05,0) -> 13 | F172: 368
A173: 169 | B173: =ROUND([3]ResourceLevelConfig!$E173*0.05,0) -> 27 | C173: =ROUND([3]ResourceLevelConfig!$C173*0.05,0) -> 269 | D173: =ROUND([3]ResourceLevelConfig!$G173*0.05,0) -> 13 | E173: =ROUND([3]ResourceLevelConfig!$H173*0.05,0) -> 13 | F173: 369
A174: 170 | B174: =ROUND([3]ResourceLevelConfig!$E174*0.05,0) -> 27 | C174: =ROUND([3]ResourceLevelConfig!$C174*0.05,0) -> 272 | D174: =ROUND([3]ResourceLevelConfig!$G174*0.05,0) -> 13 | E174: =ROUND([3]ResourceLevelConfig!$H174*0.05,0) -> 13 | F174: 370
A175: 171 | B175: =ROUND([3]ResourceLevelConfig!$E175*0.05,0) -> 28 | C175: =ROUND([3]ResourceLevelConfig!$C175*0.05,0) -> 275 | D175: =ROUND([3]ResourceLevelConfig!$G175*0.05,0) -> 13 | E175: =ROUND([3]ResourceLevelConfig!$H175*0.05,0) -> 13 | F175: 371
A176: 172 | B176: =ROUND([3]ResourceLevelConfig!$E176*0.05,0) -> 28 | C176: =ROUND([3]ResourceLevelConfig!$C176*0.05,0) -> 277 | D176: =ROUND([3]ResourceLevelConfig!$G176*0.05,0) -> 14 | E176: =ROUND([3]ResourceLevelConfig!$H176*0.05,0) -> 14 | F176: 372
A177: 173 | B177: =ROUND([3]ResourceLevelConfig!$E177*0.05,0) -> 28 | C177: =ROUND([3]ResourceLevelConfig!$C177*0.05,0) -> 280 | D177: =ROUND([3]ResourceLevelConfig!$G177*0.05,0) -> 14 | E177: =ROUND([3]ResourceLevelConfig!$H177*0.05,0) -> 14 | F177: 373
A178: 174 | B178: =ROUND([3]ResourceLevelConfig!$E178*0.05,0) -> 29 | C178: =ROUND([3]ResourceLevelConfig!$C178*0.05,0) -> 283 | D178: =ROUND([3]ResourceLevelConfig!$G178*0.05,0) -> 14 | E178: =ROUND([3]ResourceLevelConfig!$H178*0.05,0) -> 14 | F178: 374
A179: 175 | B179: =ROUND([3]ResourceLevelConfig!$E179*0.05,0) -> 29 | C179: =ROUND([3]ResourceLevelConfig!$C179*0.05,0) -> 286 | D179: =ROUND([3]ResourceLevelConfig!$G179*0.05,0) -> 14 | E179: =ROUND([3]ResourceLevelConfig!$H179*0.05,0) -> 14 | F179: 375
A180: 176 | B180: =ROUND([3]ResourceLevelConfig!$E180*0.05,0) -> 29 | C180: =ROUND([3]ResourceLevelConfig!$C180*0.05,0) -> 289 | D180: =ROUND([3]ResourceLevelConfig!$G180*0.05,0) -> 14 | E180: =ROUND([3]ResourceLevelConfig!$H180*0.05,0) -> 14 | F180: 376
A181: 177 | B181: =ROUND([3]ResourceLevelConfig!$E181*0.05,0) -> 29 | C181: =ROUND([3]ResourceLevelConfig!$C181*0.05,0) -> 292 | D181: =ROUND([3]ResourceLevelConfig!$G181*0.05,0) -> 14 | E181: =ROUND([3]ResourceLevelConfig!$H181*0.05,0) -> 14 | F181: 377
A182: 178 | B182: =ROUND([3]ResourceLevelConfig!$E182*0.05,0) -> 30 | C182: =ROUND([3]ResourceLevelConfig!$C182*0.05,0) -> 295 | D182: =ROUND([3]ResourceLevelConfig!$G182*0.05,0) -> 14 | E182: =ROUND([3]ResourceLevelConfig!$H182*0.05,0) -> 14 | F182: 378
A183: 179 | B183: =ROUND([3]ResourceLevelConfig!$E183*0.05,0) -> 30 | C183: =ROUND([3]ResourceLevelConfig!$C183*0.05,0) -> 298 | D183: =ROUND([3]ResourceLevelConfig!$G183*0.05,0) -> 14 | E183: =ROUND([3]ResourceLevelConfig!$H183*0.05,0) -> 14 | F183: 379
A184: 180 | B184: =ROUND([3]ResourceLevelConfig!$E184*0.05,0) -> 30 | C184: =ROUND([3]ResourceLevelConfig!$C184*0.05,0) -> 301 | D184: =ROUND([3]ResourceLevelConfig!$G184*0.05,0) -> 14 | E184: =ROUND([3]ResourceLevelConfig!$H184*0.05,0) -> 14 | F184: 380
A185: 181 | B185: =ROUND([3]ResourceLevelConfig!$E185*0.05,0) -> 31 | C185: =ROUND([3]ResourceLevelConfig!$C185*0.05,0) -> 304 | D185: =ROUND([3]ResourceLevelConfig!$G185*0.05,0) -> 14 | E185: =ROUND([3]ResourceLevelConfig!$H185*0.05,0) -> 14 | F185: 381
A186: 182 | B186: =ROUND([3]ResourceLevelConfig!$E186*0.05,0) -> 31 | C186: =ROUND([3]ResourceLevelConfig!$C186*0.05,0) -> 307 | D186: =ROUND([3]ResourceLevelConfig!$G186*0.05,0) -> 15 | E186: =ROUND([3]ResourceLevelConfig!$H186*0.05,0) -> 15 | F186: 382
A187: 183 | B187: =ROUND([3]ResourceLevelConfig!$E187*0.05,0) -> 31 | C187: =ROUND([3]ResourceLevelConfig!$C187*0.05,0) -> 310 | D187: =ROUND([3]ResourceLevelConfig!$G187*0.05,0) -> 15 | E187: =ROUND([3]ResourceLevelConfig!$H187*0.05,0) -> 15 | F187: 383
A188: 184 | B188: =ROUND([3]ResourceLevelConfig!$E188*0.05,0) -> 32 | C188: =ROUND([3]ResourceLevelConfig!$C188*0.05,0) -> 313 | D188: =ROUND([3]ResourceLevelConfig!$G188*0.05,0) -> 15 | E188: =ROUND([3]ResourceLevelConfig!$H188*0.05,0) -> 15 | F188: 384
A189: 185 | B189: =ROUND([3]ResourceLevelConfig!$E189*0.05,0) -> 32 | C189: =ROUND([3]ResourceLevelConfig!$C189*0.05,0) -> 316 | D189: =ROUND([3]ResourceLevelConfig!$G189*0.05,0) -> 15 | E189: =ROUND([3]ResourceLevelConfig!$H189*0.05,0) -> 15 | F189: 385
A190: 186 | B190: =ROUND([3]ResourceLevelConfig!$E190*0.05,0) -> 32 | C190: =ROUND([3]ResourceLevelConfig!$C190*0.05,0) -> 319 | D190: =ROUND([3]ResourceLevelConfig!$G190*0.05,0) -> 15 | E190: =ROUND([3]ResourceLevelConfig!$H190*0.05,0) -> 15 | F190: 386
A191: 187 | B191: =ROUND([3]ResourceLevelConfig!$E191*0.05,0) -> 32 | C191: =ROUND([3]ResourceLevelConfig!$C191*0.05,0) -> 322 | D191: =ROUND([3]ResourceLevelConfig!$G191*0.05,0) -> 15 | E191: =ROUND([3]ResourceLevelConfig!$H191*0.05,0) -> 15 | F191: 387
A192: 188 | B192: =ROUND([3]ResourceLevelConfig!$E192*0.05,0) -> 33 | C192: =ROUND([3]ResourceLevelConfig!$C192*0.05,0) -> 326 | D192: =ROUND([3]ResourceLevelConfig!$G192*0.05,0) -> 15 | E192: =ROUND([3]ResourceLevelConfig!$H192*0.05,0) -> 15 | F192: 388
A193: 189 | B193: =ROUND([3]ResourceLevelConfig!$E193*0.05,0) -> 33 | C193: =ROUND([3]ResourceLevelConfig!$C193*0.05,0) -> 329 | D193: =ROUND([3]ResourceLevelConfig!$G193*0.05,0) -> 15 | E193: =ROUND([3]ResourceLevelConfig!$H193*0.05,0) -> 15 | F193: 389
A194: 190 | B194: =ROUND([3]ResourceLevelConfig!$E194*0.05,0) -> 33 | C194: =ROUND([3]ResourceLevelConfig!$C194*0.05,0) -> 332 | D194: =ROUND([3]ResourceLevelConfig!$G194*0.05,0) -> 15 | E194: =ROUND([3]ResourceLevelConfig!$H194*0.05,0) -> 15 | F194: 390
A195: 191 | B195: =ROUND([3]ResourceLevelConfig!$E195*0.05,0) -> 34 | C195: =ROUND([3]ResourceLevelConfig!$C195*0.05,0) -> 336 | D195: =ROUND([3]ResourceLevelConfig!$G195*0.05,0) -> 15 | E195: =ROUND([3]ResourceLevelConfig!$H195*0.05,0) -> 15 | F195: 391
A196: 192 | B196: =ROUND([3]ResourceLevelConfig!$E196*0.05,0) -> 34 | C196: =ROUND([3]ResourceLevelConfig!$C196*0.05,0) -> 339 | D196: =ROUND([3]ResourceLevelConfig!$G196*0.05,0) -> 16 | E196: =ROUND([3]ResourceLevelConfig!$H196*0.05,0) -> 16 | F196: 392
A197: 193 | B197: =ROUND([3]ResourceLevelConfig!$E197*0.05,0) -> 34 | C197: =ROUND([3]ResourceLevelConfig!$C197*0.05,0) -> 342 | D197: =ROUND([3]ResourceLevelConfig!$G197*0.05,0) -> 16 | E197: =ROUND([3]ResourceLevelConfig!$H197*0.05,0) -> 16 | F197: 393
A198: 194 | B198: =ROUND([3]ResourceLevelConfig!$E198*0.05,0) -> 35 | C198: =ROUND([3]ResourceLevelConfig!$C198*0.05,0) -> 346 | D198: =ROUND([3]ResourceLevelConfig!$G198*0.05,0) -> 16 | E198: =ROUND([3]ResourceLevelConfig!$H198*0.05,0) -> 16 | F198: 394
A199: 195 | B199: =ROUND([3]ResourceLevelConfig!$E199*0.05,0) -> 35 | C199: =ROUND([3]ResourceLevelConfig!$C199*0.05,0) -> 349 | D199: =ROUND([3]ResourceLevelConfig!$G199*0.05,0) -> 16 | E199: =ROUND([3]ResourceLevelConfig!$H199*0.05,0) -> 16 | F199: 395
A200: 196 | B200: =ROUND([3]ResourceLevelConfig!$E200*0.05,0) -> 36 | C200: =ROUND([3]ResourceLevelConfig!$C200*0.05,0) -> 353 | D200: =ROUND([3]ResourceLevelConfig!$G200*0.05,0) -> 16 | E200: =ROUND([3]ResourceLevelConfig!$H200*0.05,0) -> 16 | F200: 396
A201: 197 | B201: =ROUND([3]ResourceLevelConfig!$E201*0.05,0) -> 36 | C201: =ROUND([3]ResourceLevelConfig!$C201*0.05,0) -> 356 | D201: =ROUND([3]ResourceLevelConfig!$G201*0.05,0) -> 16 | E201: =ROUND([3]ResourceLevelConfig!$H201*0.05,0) -> 16 | F201: 397
... 103 more rows
